Workbook

Sheet Principal
B4: SALDO PENDIENTE | C4: TIPO VARIABLE Euribor Mes Anterior | D4: TIPO BANCO | E4: TIPO FIJO DE MERCADO 2026 | F4: TIPO REF.FISCAL Hipotecas desde Enero 2026 | G4: RESULTADO MES
A5: PRESTAMOS TIPO FIJO o Anticipo 5/9 mens | B5: 0 | D5: 1 | E5: 3.25 | F5: =E5-D5 -> 2.25 | G5: =(B5*F5/100)/12 -> 0
A6: PRESTAMO HIPOTECARIO T.VAR (aplica techo 1,5%) | B6: 0 | D6: 1.5 | E6: 2.5 | F6: =E6-D6 -> 1 | G6: =(B6*F6/100)/12 -> 0
A7: PRESTAMO HIPOTECARIO T.VAR (NO aplica techo 1,5%) | B7: 0 | C7: 2.245 | D7: 1.45 | F7: =(C7+0.4)-D7 -> 1.195 | G7: =(B7*F7/100)/12 -> 0 | J7: Sección Sindical Banco Santander
A9: NOTA: Los resultados presentados en este simulador ni son vinculantes ni generan derecho alguno a favor del usuario que lo utiliza

Sheet Acceso a Prejubilaciones (hidden)
B1: SIMULADOR | C1: Paso 1: Introduce los datos requeridos en las casillas en amarillo | F1: Datos a fecha hoy | G1: =TODAY() -> 2026-02-05
C3: Datos personales | F3: Datos de tu nómina
C4: Nombre | D4: PAZ | F4: Nº de empleado | G4: 99999
C5: Primer apellido | D5: PI | F5: Fecha de antigüedad | G5: 1988-08-22
C6: Segundo apellido | D6: PEZ | F6: Fecha de baja en la empresa | G6: 2018-12-31
C7: Fecha de nacimiento | D7: 1963-08-30 | F7: Nivel técnico de convenio | G7: 5
C8: Nº de hijos menores de 26 años | D8: 0 | F8: Base de contingencias comunes | G8: 3751.2
F9: Trienios de antigüedad por paga | G9: 425.09
F10: Trienios técnicos por paga | G10: 149.3
F11: Participación en beneficios | G11: 335.66
F12: Otros conceptos mensuales reconocidos | G12: 75
F13: Compl. Voluntario No pensionable | G13: 742.71
C14: Paso 2: Elige la opción que se ajusta a tu tramo de edad y condiciones

Sheet Hoja1 (2) (hidden)
A1: CALCULO BAJAS INCENTIVADAS
A2: 50 a 54 años | C2: con más de 15 años de antigüedad | H2: Año | I2: 2018
B3: Fecha de hoy | C3: =TODAY() -> 2026-02-05 | E3: Años de antigüedad | F3: =DATEDIF(C$4,C$5,"Y") -> 29 | H3: Nivel | I3: Salario pensionable
B4: Fecha de entrada en el Banco | C4: 1988-08-22 | E4: Meses de antigüedad | F4: =DATEDIF(C$4,C$5,"m") -> 358 | H4: 1 | I4: 54475.01
B5: Fecha de baja en el Banco | C5: 2018-06-30 | E5: Días de antigüedad | F5: =DATEDIF(C$4,C$5,"d") -> 10904 | H5: 2 | I5: 47442.6
H6: 3 | I6: 40516.66
C7: Nivel técnico de convenio | D7: 1 | H7: 4 | I7: 38715.35
C8: Salario Bruto Anual Pensionable de Convenio | D8: =VLOOKUP(D7,H4:I14,2,FALSE) -> 54475.01 | H8: 5 | I8: 33813.21
C9: 80% del Salario Anual Pensionable | D9: =D8*0.8 -> 43580.008 | H9: 6 | I9: 31819.66
C10: Indemnización (pagadera 1 sola vez): 8 anualidades | D10: =D9*8 -> 348640.064 | H10: 7 | I10: 30357.16
H11: 8 | I11: 28894.11
H12: 9 | I12: 26890.64
H13: 10 | I13: 24231.32
H14: 11 | I14: 22078.59
A21: 60 días por año trabajado, sin tope + prima
A22: Prima por antigüedad
B23: Menor de 15 años | C23: 8000
B24: Entre 15 y 25 años | C24: 12000
B25: Mayor de 25 años | C25: 15000
E27: 20 | F27: Años de antigüedad
B29: =B27/360 -> 0 | C29: Salario diario | E29: =B29*60 -> 0 | F29: Indemnización por año de trabajo
B31: =E29*E27 -> 0 | C31: Total | E31: =45*B29*E27 -> 0 | F31: Indemnización 45 dias x año | H31: =42*30*B29 -> 0 | I31: Tope 42 mensualidades
B32: =IF(E27>=25,C25,IF(E27>=15,C24,IF(E27<15,C23))) -> 12000 | C32: Prima por antigüedad
B33: =B31+B32 -> 12000 | C33: TOTAL INDEMNIZACION | F33: =IF(E31>=H31,H31,IF(E31<H31,E31)) -> 0 | G33: Indemnización exenta de tributar
F34: =B33-F33 -> 12000 | G34: Parte de la indemnización a tributar
F35: =SUM(F33:F34) -> 12000 | G35: Total Indemnización
B37: Nota: cambiar solamente las celdas que están en rojo | F37: Si se lleva más de 2 años en la empresa
B38: Números aproximados para hacerse una idea. | F38: de la parte de la indemnización a tributar | I38: =F34 -> 12000
F39: se aplica una reducción del 40% | I39: =I38*40% -> 4800
F40: por tener la consideración de renta irregular | I40: =I38-I39 -> 7200

Sheet Hoja5 (hidden)
A2: 1988 | B2: 63 | C2: =A3+B2 -> 2026
A3: 1963 | B3: 65 | C3: =SUM(A3:B3) -> 2028 | G3: 8
A4: 1988-08-22 | G4: 7
A5: =TODAY() -> 2026-02-05 | G5: 6
A6: 1963-08-30 | G6: 5
B7: años cotizados | C7: =DATEDIF(A$4,A$5,"Y") -> 37 | E7: 2017-08-22 | G7: 4
B8: meses | C8: =DATEDIF(A$4,A$5,"m") -> 449 | E8: =DATEDIF(E$8,C$5,"m") -> 0 | G8: 3
B9: días | C9: =DATEDIF(A$4,A$5,"d") -> 13681 | G9: 2
G10: 1
A11: 12 | B11: =A11/12 -> 1 | C11: 365
A12: 12 | B12: =A12/12 -> 1 | C12: 365
A13: 12 | B13: 1 | C13: 365
A14: 12 | B14: 1 | C14: 365
A15: 12 | B15: 1 | C15: 365
A16: 12 | B16: 1 | C16: 365
A17: 12 | B17: 1 | C17: 365
A18: 12 | B18: 1 | C18: 365
A19: 12 | B19: 1 | C19: 365
A20: 12 | B20: 1 | C20: 365
A21: 12 | B21: 1 | C21: 365
A22: 12 | B22: 1 | C22: 365
A23: 12 | B23: 1 | C23: 365
A24: 12 | B24: 1 | C24: 365
A25: 12 | B25: 1 | C25: 365
A26: 12 | B26: 1 | C26: 365
A27: 12 | B27: 1 | C27: 365
A28: 12 | B28: 1 | C28: 365
A29: 12 | B29: 1 | C29: 365
A30: 12 | B30: 1 | C30: 365
A31: 12 | B31: 1 | C31: 365
A32: 12 | B32: 1 | C32: 365
A33: 12 | B33: 1 | C33: 365
A34: 12 | B34: 1 | C34: 365
A35: 12 | B35: 1 | C35: 365
A36: 12 | B36: 1 | C36: 365
A37: 12 | B37: 1 | C37: 365
A38: 12 | B38: 1 | C38: 365
A39: 12 | B39: 1 | C39: 365
A40: 12 | B40: 1 | C40: 365
A41: 12 | B41: 1 | C41: 365
A42: 12 | B42: 1 | C42: 365
A43: 12 | B43: 1 | C43: 365
A44: 12 | B44: 1 | C44: 365
A45: 12 | B45: 1 | C45: 365

Sheet Acceso a Bajas 50-54 Ant. >15 (hidden)
B1: SIMULADOR | C1: Paso 1: Introduce los datos requeridos en las casillas en amarillo | F1: Datos a fecha hoy | G1: =TODAY() -> 2026-02-05
C3: Datos personales | F3: Datos de tu nómina
C4: Nombre | D4: PAZ | F4: Nº de empleado | G4: 24509
C5: Primer apellido | D5: PI | F5: Fecha de antigüedad | G5: 1983-02-11
C6: Segundo apellido | D6: PEZ | F6: Fecha de baja en la empresa | G6: 2018-10-04
C7: Fecha de nacimiento | D7: 1964-01-06 | F7: Nivel técnico de convenio | G7: 4
C8: Nº de hijos menores de 26 años | D8: 1 | F8: Base de contingencias comunes | G8: 3751.2
F9: Trienios de antigüedad por paga | G9: 425.09
F10: Trienios técnicos por paga | G10: 149.3
F11: Participación en beneficios | G11: 335.66
F12: Otros conceptos mensuales reconocidos | G12: 75
C13: Paso 2: Pulsa en el botón para ver los resultados

Sheet 50-54 >15años (hidden)
A1: CALCULO DE BAJAS INCENTIVADAS | E1: Cálculos orientativos no vinculantes | O1: Antigüedad | P1: Primas | T1: Hijos | U1: Prestación
A2: 50 a 54 años | B2: con más de 15 años de antigüedad | K2: Año | L2: 2018 | O2: 15 | P2: 19000 | T2: 0 | U2: 1098.09
O3: 16 | P3: 19000 | T3: 1 | U3: 1254.96
A4: Datos personales | E4: Edad en 2018 | G4: =DATEDIF(C$5,C$8,"Y") ->  | O4: 17 | P4: 19000 | T4: 2 | U4: 1411.83
B5: Fecha de nacimiento | C5: =Principal!B7 -> 00:00:00 | D5: Antigüedad | E5: =DATEDIF(C$7,C$8,"Y")& " años " & DATEDIF(C$7,C$8,"YM") & " meses y " & DATEDIF(C$7,C$8,"MD")& " días " ->  | O5: 18 | P5: 19000 | T5: 3 | U5: 1411.83
B6: Fecha de hoy | C6: =TODAY() -> 2026-02-05 | F6: Años de antigüedad | G6: =DATEDIF(C$7,C$8,"Y") ->  | L6: Salario pensionable Anual | M6: En 14 pagas | O6: 19 | P6: 19000 | T6: 4 | U6: 1411.83
B7: Fecha de entrada en el Banco | C7: =Principal!#REF! ->  | E7: Trienios Completos de Antigüedad | F7: =G6/3 ->  | G7: =ROUNDDOWN(F7,0) ->  | K7: 1 | L7: 54475.01 | M7: =L7/14 -> 3891.072143 | N7: por paga | O7: 20 | P7: 24000 | T7: 5 | U7: 1411.83
B8: Fecha de baja en el Banco | C8: =Principal!#REF! ->  | F8: Base de contingencias comunes (última nómina) | G8: =Principal!#REF! ->  | K8: 2 | L8: 47442.6 | M8: =L8/14 -> 3388.757143 | N8: por paga | O8: 21 | P8: 24000 | T8: 6 | U8: 1411.83
B9: Nivel técnico de convenio | C9: =Principal!#REF! ->  | F9: Nº Hijos a su cargo (<26 años o con discapacidad >33%) | G9: =Principal!#REF! ->  | H9: Hijos | K9: 3 | L9: 40516.66 | M9: 2894.047143 | N9: por paga | O9: 22 | P9: 24000 | T9: 7 | U9: 1411.83
K10: 4 | L10: 38715.35 | M10: 2765.382143 | N10: por paga | O10: 23 | P10: 24000 | T10: 8 | U10: 1411.83
A11: Datos de la última nómina (normal sin pagas extra) | E11: Cálculo del salario anual pensionable | K11: 5 | L11: 33813.21 | M11: 2415.229286 | N11: por paga | O11: 24 | P11: 24000 | T11: 9 | U11: 1411.83
B12: Salario Base de nivel por paga | C12: =VLOOKUP(C9,K7:M18,3,FALSE) ->  | F12: Salario Bruto Anual Pensionable de Convenio | G12: =C12*14 ->  | K12: 6 | L12: 31819.66 | M12: 2272.832857 | N12: por paga | O12: 25 | P12: 30000 | T12: 10 | U12: 1411.83
B13: Trienios de Antigüedad por paga | C13: =Principal!#REF! ->  | F13: Importe anual a percibir por trienios de antigüedad | G13: =G6*M20 ->  | K13: 7 | L13: 30357.16 | M13: 2168.368571 | N13: por paga | O13: 26 | P13: 30000 | T13: 11 | U13: 1411.83
B14: Trienios Técnicos por paga | C14: =Principal!#REF! ->  | F14: Importe anual a percibir por trienios técnicos | G14: =C14*14 ->  | K14: 8 | L14: 28894.11 | M14: 2063.865 | N14: por paga | O14: 27 | P14: 30000 | T14: 12 | U14: 1411.83
B15: Participación en Beneficios | C15: =Principal!#REF! ->  | F15: Importe anual a percibir por Participacion en Beneficios | G15: =C15*14 -> 
B16: Otros conceptos mensuales reconocidos | C16: =Principal!#REF! ->  | F16: Importe anual a percibir por otros conceptos reconocidos | G16: =C16*14 ->  | K16: 9 | L16: 26890.64 | M16: 1920.76 | N16: por paga | O16: 28 | P16: 30000
A17: Total salario por paga pensionable | C17: =SUM(C12:C16) ->  | D17: Total salario anual pensionable | G17: =SUM(G12:G16) ->  | K17: 10 | L17: 24231.32 | M17: 1730.808571 | N17: por paga | O17: 29 | P17: 30000
K18: 11 | L18: 22078.59 | M18: 1577.042143 | N18: por paga | O18: 30 | P18: 30000
A19: Indemnización | O19: 31 | P19: 30000
B20: 80% del Salario Anual Pensionable | C20: =G17*0.8 ->  | E20: Abono Total por Baja Incentivada | L20: Importe de convenio por trienio 2018 | M20: 470 | O20: 32 | P20: 30000
B21: Indemnización de 8 anualidades | C21: =C20*8 ->  | E21: Indemnización | G21: =C23 ->  | O21: 33 | P21: 30000
B22: Importe Límite Màximo en Acuerdo | C22: 380000 | E22: Primas | G22: =C27 ->  | O22: 34 | P22: 30000
B23: Indemnización a percibir de 1 sola vez | C23: =IF(C21<C22,C21,IF(C21=C22,C22,IF(C21>C22,C22))) ->  | E23: TOTAL FINAL A PERCIBIR | G23: =SUM(G21:G22) ->  | K23: Prima por antigüedad | O23: 35 | P23: 30000
A24: Primas | E24: Fiscalidad | L24: Entre 15 y 20 años | M24: 19000 | O24: 36 | P24: 30000
B25: Por antigüedad | C25: =VLOOKUP(G6,O2:P44,2,FALSE) ->  | E25: Máximo exento de tributar | G25: 180000 | L25: Entre 20 y 25 años | M25: 24000 | O25: 37 | P25: 30000
B26: Por trienios | C26: =2000*G7 ->  | E26: Resto que exceda el límite | G26: =G23-G25 ->  | L26: Mayor de 25 años | M26: 30000 | O26: 38 | P26: 30000
B27: Total Primas | C27: =SUM(C25:C26) ->  | E27: Total Indemnización | G27: =+G25+G26 ->  | K27: Prima por trienio | O27: 39 | P27: 30000
K28: 2000 | L28: 30 | M28: Años de antigüedad | O28: 40 | P28: 30000
A29: Fiscalidad | O29: 41 | P29: 30000
A30: Siempre en función de la base imponible de cada persona y definida en la Renta del IRPF. El 30% del exceso sobre el máximo de 180 mil € está exento por considerarse renta irregular. Tributa sólo el 70% del exceso. | L30: =#REF!*60 ->  | M30: Indemnización por año de trabajo | P30: 30000
A32: Total bruto | D32: =G27-D30 ->  | L32: =IF(L28>=25,M26,IF(L28>=15,M25,IF(L28<15,M24))) -> 30000 | M32: Prima por antigüedad | O32: 45 | P32: 30000
A33: Prestación de desempleo a percibir por 2 años | D33: =VLOOKUP(G9,T2:$U$14,2,FALSE)*24 ->  | L33: =#REF!+L32 ->  | M33: TOTAL INDEMNIZACION | O33: 46 | P33: 30000
C34: Total a percibir | D34: =SUM(D32:E33) ->  | O34: 47 | P34: 30000
A36: Prorrateo hasta jubilación anticipada | G36: Prorrateo estimado (9 años) del bruto hasta los 63 años | O36: 48 | P36: 30000
B37: Años que restan para cumplir 63 años | C37: =63-G4 ->  | E37: Cada año | G37: Cada mes | O37: 49 | P37: 30000
B38: Año en el que se cumplen los 65 años | C38: =2018+C37+2 ->  | E38: =D34/C37 ->  | G38: =E38/12 -> 
O39: 50 | P39: 30000
O40: 51 | P40: 30000
O41: 52 | P41: 30000
A42: Prestación de desempleo (2 años) | O42: 53 | P42: 30000
A43: Base de contingencias comunes (última nómina) | C43: =G8 ->  | E43: Prestación Máxima | O43: 54 | P43: 30000
D44: 2017 | E44: Mensual | G44: Anual | O44: 55 | P44: 30000
A45: Cotización de la empresa mes 6 | C45: =C43 ->  | D45: Sin hijos | E45: 1098.09 | G45: =U2*12 -> 13177.08
A46: Cotización de la empresa mes 5 | C46: =C45 ->  | D46: Con 1 hijo a su cargo | E46: 1254.96 | G46: =U3*12 -> 15059.52
A47: Cotización de la empresa mes 4 | C47: =C46 ->  | D47: Con 2 o más hijos a su cargo | E47: 1411.83 | G47: =U4*12 -> 16941.96
A48: Cotización de la empresa mes 3 | C48: =C47 ->  | D48: (hijos menores de 26 años o mayores o con discapacidad igual o superior al 33%)
A49: Cotización de la empresa mes 2 | C49: =C48 ->  | E49: Dias cotizados en los últimos 6 años, desde | F49: 2160 | G49: días
A50: Cotización de la empresa mes 1 | C50: =C49 ->  | E50: Derecho a duración de la prestación | F50: 720 | G50: días (2 años)
A51: Total cotizado por la empresa últimos 6 meses | C51: =SUM(C45:C50) ->  | E51: Base reguladora mensual | F51: =C51/180*30 -> 
A53: Seguridad Social
A54: Convenio Especial, cotización máxima a cargo del Banco hasta los 63 años (edad para la jubilación anticipada) | C54: Cuota mensual | D54: Ejemplo | E54: Trimestres Faltantes hasta 65 años | H54: 8
C55: 957 | E55: Años cotizados (según vida laboral) | H55: 39
C56: Cuota anual | E56: Coef. Reductor a aplicar | H56: 0.0175
A57: (Cada mes. se adeuda al empleado y 2 días despúes el Banco lo abona). | C57: =C55*12 -> 11484 | E57: (Multiplicar 8 x 1,75% = 14% anual)
C59: Paga (14 pagas) | E59: Porcentaje a descontar a la pensión anual | H59: =H54*H56 -> 0.14
B60: Actualizada a 2017 | C60: 2573.7 | E60: Paga real (a 14) | F60: Descuento por paga
A61: Pensión máxima (14 pagas) de la Seguridad social a partir de los 63 años | C61: Pensión anual | E61: =E63/14 -> 2213.382 | F61: =+C60-E61 -> 360.318
C62: =C60*14 -> 36031.8 | E62: Paga anual real | F62: Descuento anual
E63: =+C62-F63 -> 30987.348 | F63: =C62*0.14 -> 5044.452
A64: Coeficiente reductor que corresponda por cada trimestre que falte hasta la edad de jubilacion de 65 años (por jubilación anticipada a los 63 años), según la vida laboral. Sumar trimestres faltantes y multiplicar por el coeficiente. | C64: Coef. Red. Trim.
C65: 0.015 | D65: Más de 44 años y 6 meses
C66: 0.01625 | D66: Igual o superior a 41 años y 6 meses
C67: 0.0175 | D67: Igual o superior a 38 años y 6 meses e inferior a 41 años y 6 meses
C68: 0.01875 | D68: Inferior a 38 años y 6 meses
A70: Trabajadores mayores de 55 años que pierden su empleo en un despido colectivo En el supuesto de trabajadores mayores de 55 años que pierden su empleo en un despido colectivo, que no tienen la condición de mutualista a 1 de enero de 1967, en una empresa no incursa en un procedimiento concursal, se impone al empresario la obligación de financiar un convenio especial de la Seguridad Social. Fuera del ámbito del despido colectivo por causas económicas, técnicas, organizativas o de producción no existe la citada obligación de financiar un convenio especial de la Seguridad Social. La solicitud del convenio especial debe realizarse durante el procedimiento de despido colectivo. El convenio especial es suscrito, por un lado, por el empresario y el trabajador, y, por otro lado, por la Tesorería General de la Seguridad Social.
A71: La finalidad del convenio especial
A73: La finalidad del convenio especial. La suscripción del convenio especial determina la continuación de la situación de alta o asimilada a la de alta. El convenio especial tiene por objeto la cotización al Régimen de la Seguridad Social que corresponda y la cobertura de las situaciones derivadas de contingencias comunes. Quedan excluidas las situaciones de incapacidad temporal, maternidad y riesgo durante el embarazo y los subsidios correspondientes a las mismas. Asimismo, queda excluida la cotización y la protección por desempleo, Fondo de Garantía Salarial y formación profesional.
A75: La cotización
A76: La cotización en el convenio especial se realizará desde la fecha en que se produzca el cese en el trabajo o, en su caso, en que finalice la obligación de cotizar por extinción de la prestación por desempleo, y la fecha en que el trabajador cumpla la edad de 67 años, o 65 cuando se acrediten 38 años y 6 meses de cotización. Estas edades de jubilación y años de cotización no entrarán en vigor hasta el año 2027. Existe un período de transición hacia dichas edades y años de cotización. Para el año 2016, la edad de jubilación es de 65 años si se acreditan 36 o más años de cotización, o 65 años y 4 meses cuando se acrediten menos de 36 años de cotización. Las cotizaciones son a cargo del empresario hasta la fecha en que el trabajador cumpla los 63 años, salvo en los casos en que el despido colectivo haya tenido una causa económica, en este caso la obligación se extiende hasta que el trabajador cumpla los 61 años. Desde que el trabajador cumpla los 63 años o, en su caso, los 61 años, las aportaciones al convenio especial son a su exclusivo cargo y son obligatorias hasta que el trabajador cumpla la edad ordinaria de jubilación o, en su caso, acceda a la pensión de jubilación anticipada (es necesario ver la vida laboralpara saber los años cotizados hasta la fecha baja en el Banco y sumarle los restantes hasta cumplir los 63 años). En caso de fallecimiento del trabajador o de reconocimiento de una pensión de incapacidad permanente durante el periodo de cotización correspondiente al empresario, este tiene derecho al reintegro de las cuotas, siempre que se hubiesen ingresado en una fecha posterior al fallecimiento o reconocimiento de la pensión de incapacidad permanente.
A78: Si durante el periodo de cotización a cargo del empresario el trabajador realizase alguna actividad por la que se efectúen cotizaciones a la Seguridad Social, las cuotas coincidentes con las correspondientes a la actividad realizada, hasta la cuantía de estas últimas, se aplicarán al pago del convenio especial durante el período a cargo del trabajador.

Sheet Días (hidden)
H1: HOY | J1: Indemnizaciones tras la Reforma Laboral
A2: AÑO | B2: MES | C2: AÑO | D2: DÍAS | E2: EDAD | F2: Jubilacion | H2: =TODAY() -> 2026-02-05 | J2: DESPIDO IMPROCEDENTE
A3: 1 | B3: ENERO | C3: 1956 | D3: 365 | E3: =2019-C3 -> 63 | F3: =63-E3 -> 0
A4: 3 | B4: ENERO | C4: 1957 | D4: 365 | E4: =2019-C4 -> 62 | F4: =63-E4 -> 1 | H4: FECHA INICIO | I4: FECHA FIN | J4: Años | K4: Meses | L4: Días | M4: Mes Completo | N4: Mes Fracción | O4: Mes Resto | P4: Total Meses
A5: 4 | B5: ENERO | C5: 1958 | D5: 366 | E5: 61 | F5: 2 | G5: 1er Tramo | H5: =Principal!#REF! ->  | I5: 2012-02-11 | J5: =DATEDIF($H5,$I5,"Y") ->  | K5: =DATEDIF($H5,$I5,"YM") ->  | L5: =DATEDIF($H5,$I5,"MD") ->  | M5: =J5*12 ->  | N5: =K5 ->  | O5: =IF(L5>0,1,0) ->  | P5: =+M5+N5+O5 -> 
A6: 5 | B6: ENERO | C6: 1959 | D6: 365 | E6: 60 | F6: 3
A7: 6 | B7: ENERO | C7: 1960 | D7: 365 | E7: 59 | F7: 4 | J7: Completo | K7: Completo | L7: Restantes
A8: 7 | B8: ENERO | C8: 1961 | D8: 365 | E8: 58 | F8: 5 | G8: 2º Tramo | H8: 2012-02-12 | I8: =Principal!#REF! ->  | J8: =DATEDIF($H8,$I8,"Y") ->  | K8: =DATEDIF($H8,$I8,"YM") ->  | L8: =DATEDIF($H8,$I8,"MD") ->  | M8: =J8*12 ->  | N8: =K8 ->  | O8: =IF(L8>0,1,0) ->  | P8: =+M8+N8+O8 -> 
A9: 8 | B9: ENERO | C9: 1962 | D9: 366 | E9: 57 | F9: 6
A10: 9 | B10: ENERO | C10: 1963 | D10: 365 | E10: 56 | F10: 7 | I10: TOTALES | J10: =SUMIF(J5,">0")+J8 ->  | K10: =SUMIF(K5,">0")+K8 ->  | L10: =SUMIF(L5,">0")+L8 ->  | M10: =SUMIF(M5,">0")+M8 -> 
A11: 10 | B11: ENERO | C11: 1964 | D11: 365 | E11: 55 | F11: 8
A12: 11 | B12: ENERO | C12: 1965 | D12: 365 | E12: 54 | F12: 9 | H12: =Principal!#REF! ->  | I12: =Principal!#REF! ->  | J12: =DATEDIF($H12,$I12,"Y") ->  | K12: =DATEDIF($H12,$I12,"YM") ->  | L12: =DATEDIF($H12,$I12,"MD") ->  | M12: =J12*12 ->  | N12: =K12 ->  | O12: =IF(L12>0,1,0) ->  | P12: =SUM(M12:O12) -> 
A13: 12 | B13: ENERO | C13: 1965.833333 | D13: 366 | E13: 53.16666667 | F13: 9.833333333
A14: 13 | B14: ENERO | C14: 1967.333333 | D14: 365 | E14: 51.66666667 | F14: 11.33333333 | K14: Meses
A15: 14 | B15: ENERO | C15: 1969 | D15: 365 | E15: 50 | F15: 13 | G15: Mayores de 62 años | K15: 12
A16: 15 | B16: ENERO | C16: 1970 | D16: 365 | E16: 49
A17: 16 | B17: ENERO | C17: 1972 | D17: 366 | E17: 47
A18: 17 | B18: ENERO | C18: 1973 | D18: 365 | E18: =2019-C18 -> 46 | G18: De 55 a 61 años | J18: PREJUBILACION
A19: 18 | B19: ENERO | C19: 1974 | D19: 365 | E19: =2019-C19 -> 45
A20: 19 | B20: ENERO | C20: 1975 | D20: 365 | E20: 44 | H20: FECHA NACIMIENTO | I20: FECHA PREJUB. | J20: Años | K20: Meses | L20: Días | M20: Mes Completo | N20: Mes Fracción | O20: Mes Resto | P20: Total Meses
A21: 20 | B21: ENERO | C21: 1976 | D21: 366 | E21: 43 | G21: Prejub | H21: =Principal!B7 -> 00:00:00 | I21: =Principal!#REF! ->  | J21: =DATEDIF($H21,$I21,"Y") ->  | K21: =DATEDIF($H21,$I21,"YM") ->  | L21: =DATEDIF($H21,$I21,"MD") ->  | M21: =J21*12 ->  | N21: =K21 ->  | O21: =IF(L21>0,1,0) ->  | P21: =+M21+N21+O21 -> 
A22: 21 | B22: ENERO | C22: 1977 | D22: 365 | E22: 42
A23: 22 | B23: ENERO | C23: 1978 | D23: 365 | E23: 41 | H23: FECHA PREJUB. | I23: FECHA JUB | J23: Completo | K23: Completo | L23: Restantes
A24: 23 | B24: ENERO | C24: 1979 | D24: 365 | E24: 40 | G24: Prestación | H24: =DATE(YEAR(I21),MONTH(I21),DAY(I21)+1) ->  | I24: =DATE(YEAR(H21)+63,MONTH(H21),DAY(H21)) -> 1962-12-31 | J24: =DATEDIF($H24,$I24,"Y") ->  | K24: =DATEDIF($H24,$I24,"YM") ->  | L24: =DATEDIF(H73,$I24,"MD") -> 31 | M24: =J24*12 ->  | N24: =K24 ->  | O24: =IF(L24>0,1,0) -> 1 | P24: =+M24+N24+O24 -> 
A25: 24 | B25: ENERO | C25: 1980 | D25: 366 | E25: 39 | I25: 63 AÑOS | L25: Cotizado | M25: =DATEDIF(H$29,I$24,"Y")& " años, " & DATEDIF(H$29,I$24,"YM") & " meses y " & DATEDIF(H$29,I$24,"MD")& " días " -> 
A26: 25 | B26: ENERO | C26: 1981 | D26: 365 | E26: 38 | I26: TOTALES | J26: =+J21+J24 -> 
A27: 26 | B27: ENERO | C27: 1982 | D27: 365 | E27: 37
A28: 27 | B28: ENERO | C28: 1983 | D28: 365 | E28: 36 | H28: 1ª FEC. COTIZ.. | I28: FECHA JUB
A29: 28 | B29: ENERO | C29: 1984 | D29: 366 | E29: 35 | G29: Años cotizados | H29: =Principal!#REF! ->  | I29: =I24+365+366 -> 1964-12-31 | J29: =DATEDIF($H29,$I29,"Y") ->  | K29: =DATEDIF($H29,$I29,"YM") ->  | L29: =DATEDIF($H29,$I29,"MD") ->  | Q29: =J29/3 -> 
A30: 29 | B30: ENERO | C30: 1985 | D30: 365 | E30: 34 | H30: Edad legal | I30: 65 AÑOS | M30: Trienios completos de antigüedad | N30: =ROUNDDOWN(Q29,0) -> 
A31: 30 | B31: ENERO | C31: 1986 | D31: 365 | E31: 33 | M31: Antigüedad | N31: =DATEDIF(H$29,I$21,"Y")& " años, " & DATEDIF(H$29,I$21,"YM") & " meses y " & DATEDIF(H$29,I$21,"MD")& " días " -> 
A32: 31 | B32: ENERO | C32: 1987 | D32: 365 | E32: 32 | H32: 1ª FEC. COTIZ.. | I32: F. JUB. ANT
A33: 32 | B33: FEBRERO | C33: 1988 | D33: 366 | E33: 31 | G33: Años cotizados | H33: =H29 ->  | I33: =DATE(YEAR(H21)+63,MONTH(H21),DAY(H21)) -> 1962-12-31 | J33: =DATEDIF($H33,$I33,"Y") ->  | K33: =DATEDIF($H33,$I33,"YM") ->  | L33: =DATEDIF($H33,$I33,"MD") -> 
A34: 33 | B34: FEBRERO | C34: 1989 | D34: 365 | E34: 30 | H34: Edad legal Jub. Ant. | I34: 63 AÑOS | R34: 1999
A35: 34 | B35: FEBRERO | C35: 1990 | D35: 365 | E35: 29 | R35: 2000
A36: 35 | B36: FEBRERO | C36: 1991 | D36: 365 | E36: 28 | R36: 2001
A37: 36 | B37: FEBRERO | C37: 1992 | D37: 366 | E37: 27 | R37: 2002
A38: 37 | B38: FEBRERO | C38: 1993 | D38: 365 | E38: 26 | R38: 2003
A39: 38 | B39: FEBRERO | C39: 1994 | D39: 365 | E39: 25 | R39: 2004
A40: 39 | B40: FEBRERO | C40: 1995 | D40: 365 | E40: 24 | R40: 2005
A41: 40 | B41: FEBRERO | C41: 1996 | D41: 366 | E41: 23 | R41: 2006
A42: 41 | B42: FEBRERO | C42: 1997 | D42: 365 | E42: 22 | R42: 2007
A43: 42 | B43: FEBRERO | C43: 1998 | D43: 365 | E43: 21 | R43: 2008
A44: 43 | B44: FEBRERO | C44: 1999 | D44: 365 | E44: 20 | R44: 2009
A45: 44 | B45: FEBRERO | C45: 2000 | D45: 366 | E45: 19 | R45: 2010
A46: 45 | B46: FEBRERO | C46: 2001 | D46: 365 | E46: 18 | R46: 2011
A47: 46 | B47: FEBRERO | C47: 2002 | D47: 365 | E47: 17 | R47: 2012
A48: 47 | B48: FEBRERO | C48: 2003 | D48: 365 | E48: 16 | R48: 2013
A49: 48 | B49: FEBRERO | C49: 2004 | D49: 366 | E49: 15 | R49: 2014
A50: 49 | B50: FEBRERO | C50: 2005 | D50: 365 | E50: 14 | R50: 2015
A51: 50 | B51: FEBRERO | C51: 2006 | D51: 365 | E51: 13 | R51: 2016
A52: 51 | B52: FEBRERO | C52: 2007 | D52: 365 | E52: 12 | R52: 2017
A53: 52 | B53: FEBRERO | C53: 2008 | D53: 366 | E53: 11 | R53: 2018
A54: 53 | B54: FEBRERO | C54: 2009 | D54: 365 | E54: 10 | R54: 2019
A55: 54 | B55: FEBRERO | C55: 2010 | D55: 365 | E55: 9 | R55: 2020
A56: 55 | B56: FEBRERO | C56: 2011 | D56: 365 | E56: 8 | R56: 2021
A57: 56 | B57: FEBRERO | C57: 2012 | D57: 366 | E57: 7 | R57: 2022
A58: 57 | B58: FEBRERO | C58: 2013 | D58: 365 | E58: 6 | R58: 2023
A59: 58 | B59: FEBRERO | C59: 2014 | D59: 365 | E59: 5 | R59: 2024
A60: 59 | B60: FEBRERO | C60: 2015 | D60: 365 | E60: 4 | R60: 2025
A61: 60 | B61: MARZO | C61: 2016 | D61: 366 | E61: 3 | R61: 2026
A62: 61 | B62: MARZO | C62: 2017 | D62: 365 | E62: 2 | R62: 2027
A63: 62 | B63: MARZO | C63: 2018 | D63: 365 | E63: 1 | R63: 2028
A64: 63 | B64: MARZO | C64: 2019 | D64: 365 | E64: 0 | R64: 2029
A65: 64 | B65: MARZO | C65: 2020 | D65: 366 | E65: -1
A66: 65 | B66: MARZO | C66: 2021 | D66: 365 | E66: -2
A67: 66 | B67: MARZO | C67: 2022 | D67: 365 | E67: -3
A68: 67 | B68: MARZO | C68: 2023 | D68: 365 | E68: -4
A69: 68 | B69: MARZO | C69: 2024 | D69: 366 | E69: -5
A70: 69 | B70: MARZO | C70: 2025 | D70: 365 | E70: -6
A71: 70 | B71: MARZO | C71: 2026 | E71: -7
A72: 71 | B72: MARZO | C72: 2027 | E72: -8
A73: 72 | B73: MARZO | C73: 2028 | E73: -9
A74: 73 | B74: MARZO | C74: 2029 | E74: -10
A75: 74 | B75: MARZO | C75: 2030 | E75: -11
A76: 75 | B76: MARZO | C76: 2031 | E76: -12
A77: 76 | B77: MARZO | C77: 2032 | E77: -13
A78: 77 | B78: MARZO | C78: 2033 | E78: -14
A79: 78 | B79: MARZO | C79: 2034 | E79: -15
A80: 79 | B80: MARZO
A81: 80 | B81: MARZO
A82: 81 | B82: MARZO
A83: 82 | B83: MARZO
A84: 83 | B84: MARZO
A85: 84 | B85: MARZO
A86: 85 | B86: MARZO
A87: 86 | B87: MARZO
A88: 87 | B88: MARZO
A89: 88 | B89: MARZO
A90: 89 | B90: MARZO
A91: 90 | B91: MARZO
A92: 91 | B92: ABRIL
A93: 92 | B93: ABRIL
A94: 93 | B94: ABRIL
A95: 94 | B95: ABRIL
A96: 95 | B96: ABRIL
A97: 96 | B97: ABRIL
A98: 97 | B98: ABRIL
A99: 98 | B99: ABRIL
A100: 99 | B100: ABRIL
A101: 100 | B101: ABRIL
A102: 101 | B102: ABRIL
A103: 102 | B103: ABRIL
A104: 103 | B104: ABRIL
A105: 104 | B105: ABRIL
A106: 105 | B106: ABRIL
A107: 106 | B107: ABRIL
A108: 107 | B108: ABRIL
A109: 108 | B109: ABRIL
A110: 109 | B110: ABRIL
A111: 110 | B111: ABRIL
A112: 111 | B112: ABRIL
A113: 112 | B113: ABRIL
A114: 113 | B114: ABRIL
A115: 114 | B115: ABRIL
A116: 115 | B116: ABRIL
A117: 116 | B117: ABRIL
A118: 117 | B118: ABRIL
A119: 118 | B119: ABRIL
A120: 119 | B120: ABRIL
A121: 120 | B121: ABRIL
A122: 121 | B122: MAYO
A123: 122 | B123: MAYO
A124: 123 | B124: MAYO
A125: 124 | B125: MAYO
A126: 125 | B126: MAYO
A127: 126 | B127: MAYO
A128: 127 | B128: MAYO
A129: 128 | B129: MAYO
A130: 129 | B130: MAYO
A131: 130 | B131: MAYO
A132: 131 | B132: MAYO
A133: 132 | B133: MAYO
A134: 133 | B134: MAYO
A135: 134 | B135: MAYO
A136: 135 | B136: MAYO
A137: 136 | B137: MAYO
A138: 137 | B138: MAYO
A139: 138 | B139: MAYO
A140: 139 | B140: MAYO
A141: 140 | B141: MAYO
A142: 141 | B142: MAYO
A143: 142 | B143: MAYO
A144: 143 | B144: MAYO
A145: 144 | B145: MAYO
A146: 145 | B146: MAYO
A147: 146 | B147: MAYO
A148: 147 | B148: MAYO
A149: 148 | B149: MAYO
A150: 149 | B150: MAYO
A151: 150 | B151: MAYO
A152: 151 | B152: MAYO
A153: 152 | B153: JUNIO
A154: 153 | B154: JUNIO
A155: 154 | B155: JUNIO
A156: 155 | B156: JUNIO
A157: 156 | B157: JUNIO
A158: 157 | B158: JUNIO
A159: 158 | B159: JUNIO
A160: 159 | B160: JUNIO
A161: 160 | B161: JUNIO
A162: 161 | B162: JUNIO
A163: 162 | B163: JUNIO
A164: 163 | B164: JUNIO
A165: 164 | B165: JUNIO
A166: 165 | B166: JUNIO
A167: 166 | B167: JUNIO
A168: 167 | B168: JUNIO
A169: 168 | B169: JUNIO
A170: 169 | B170: JUNIO
A171: 170 | B171: JUNIO
A172: 171 | B172: JUNIO
A173: 172 | B173: JUNIO
A174: 173 | B174: JUNIO
A175: 174 | B175: JUNIO
A176: 175 | B176: JUNIO
A177: 176 | B177: JUNIO
A178: 177 | B178: JUNIO
A179: 178 | B179: JUNIO
A180: 179 | B180: JUNIO
A181: 180 | B181: JUNIO
A182: 181 | B182: JUNIO
A183: 182 | B183: JULIO
A184: 183 | B184: JULIO
A185: 184 | B185: JULIO
A186: 185 | B186: JULIO
A187: 186 | B187: JULIO
A188: 187 | B188: JULIO
A189: 188 | B189: JULIO
A190: 189 | B190: JULIO
A191: 190 | B191: JULIO
A192: 191 | B192: JULIO
A193: 192 | B193: JULIO
A194: 193 | B194: JULIO
A195: 194 | B195: JULIO
A196: 195 | B196: JULIO
A197: 196 | B197: JULIO
A198: 197 | B198: JULIO
A199: 198 | B199: JULIO
A200: 199 | B200: JULIO
... 166 more rows

Sheet Hoja7 (hidden)

Sheet Hoja6 (hidden)
B6: 225870
B7: -136009
B8: =SUM(B6:B7) -> 89861
A10: 30 | B10: =B8*0.3 -> 26958.3 | C10: =B8-B10 -> 62902.7

Sheet Acceso a 40 días por año (hidden)
B1: SIMULADOR | C1: Paso 1: Introduce los datos requeridos en las casillas en amarillo | F1: Datos a fecha hoy | G1: =TODAY() -> 2026-02-05
C3: Datos personales | F3: Datos de tu nómina
C4: Nombre | D4: JOSE | F4: Nº de empleado | G4: 123456
C5: Primer apellido | D5: PEREZ | F5: Fecha de antigüedad | G5: 2009-01-01
C6: Segundo apellido | D6: LOPEZ | F6: Fecha de baja en la empresa | G6: 2018-12-31
C7: Fecha de nacimiento | D7: 1969-08-30 | F7: Nivel técnico de convenio | G7: 5
C8: Nº de hijos menores de 26 años | D8: 1 | F8: Base de contingencias comunes | G8: 3751.2
F9: Trienios de antigüedad por paga | G9: 125
F10: Trienios técnicos por paga | G10: 75
F11: Participación en beneficios | G11: 335.66
F12: Otros conceptos mensuales reconocidos | G12: 350
C13: Paso 2: Pulsa en el botón para ver los resultados
C19: Nacidos desde el año 1969

Sheet 40 días por año (hidden)
A1: BAJA INCENTIVADA
A2: Edad: | B2: Menos de 49 años
A4: Datos personales | E4: Datos de tu nómina
A5: Nombre | B5: =Principal!B4 -> SALDO PENDIENTE | D5: Nº de empleado | F5: ='Acceso a 40 días por año'!G4 -> 123456
A6: Primer apellido | B6: =Principal!B5 -> 0 | D6: Fecha de antigüedad | F6: =Principal!#REF! -> 
A7: Segundo apellido | B7: =Principal!B6 -> 0 | D7: Trienios de antigüedad completos | G7: ='Calculo 40 días'!G7 -> 
A8: Fecha de nacimiento | B8: =Principal!B7 -> 00:00:00 | D8: Fecha de baja en la empresa | F8: =Principal!#REF! -> 
A9: Edad en 2018 | B9: ='Calculo 40 días'!G4 ->  | D9: Nivel técnico de convenio | F9: =Principal!#REF! -> 
A10: Nº de hijos menores de 26 años | B10: =Principal!#REF! ->  | D10: Antigüedad | F10: ='Calculo 40 días'!E5 -> 
A12: Cálculos orientativos no vinculantes
A14: 1.- Salario anual
A15: Salario anual fijo | B15: ='Calculo 40 días'!C22 -> 
A16: Salario anual variable | B16: ='Calculo 40 días'!C21 -> 
A17: Total | E17: =SUM(B15:B16) -> 
A19: Indemnización | B19: Por año | E19: =F10 -> 
A21: 40 días por año trabajado | B21: ='Calculo 40 días'!C26 -> 
B22: Máximo 2 anualidades
B23: =B21*2 -> 
A24: Máximo 2 anualidades | B24: Total | E24: =B21*2 -> 
A25: 2.-Primas
A27: Por antigüedad | B27: ='Calculo 40 días'!G21 -> 
A28: Por trienios | B28: ='Calculo 40 días'!G22 -> 
A29: Total | E29: ='Calculo 40 días'!G23 -> 
A31: A.- TOTAL ABONO DEL BANCO POR UNA SOLA VEZ | E31: =+E24+E29 -> 
A33: Prestación máxima de desempleo 2017 | B33: Mensual | E33: Anual
A34: Sin hijos | B34: ='50-54 >15años'!E45 -> 1098.09 | E34: ='50-54 >15años'!G45 -> 13177.08
A35: Con 1 hijo a su cargo | B35: ='50-54 >15años'!E46 -> 1254.96 | E35: ='50-54 >15años'!G46 -> 15059.52
A36: Con 2 o más hijos a su cargo | B36: ='50-54 >15años'!E47 -> 1411.83 | E36: ='50-54 >15años'!G47 -> 16941.96
A38: (hijos menores de 26 años o mayores o con discapacidad igual o superior al 33%, según la legislaciòn vigente)
A39: B.- PRESTACION DE DESEMPLEO POR 2 AÑOS | E39: ='50-54 >15años'!D33 -> 
A41: TOTAL IMPORTE BRUTO A HASTA CUMPLIR 63 AÑOS (A + B) | E41: ='50-54 >15años'!D34 -> 
A43: Fiscalidad
A44: Siempre en función de la base imponible de cada persona y definida en la Renta del IRPF. El 30% del exceso sobre el máximo de 180 mil € está exento por considerarse renta irregular. Tributa sólo el 70% del exceso.
A48: Seguridad Social
A49: Convenio Especial, cotización máxima a cargo del Banco hasta los 63 años (edad para la jubilación anticipada). | E49: Cuota mensual
E50: ='50-54 >15años'!C55 -> 957
E51: Cuota anual
A52: (Cada mes. se adeuda al empleado y 2 días despúes el Banco lo abona). | E52: ='50-54 >15años'!C57 -> 11484
A54: Años que restan para cumplir 63 años | E54: ='50-54 >15años'!C37 -> 
A55: Año en el que se cumplen los 65 años | E55: ='50-54 >15años'!C38 -> 
A57: Pensión máxima (actualizada a 2017)
A58: (14 pagas) de la Seguridad social a partir de los 63 años. | E58: Paga (14 pagas)
A59: Hay que aplicar el Coeficiente reductor que corresponda por cada trimestre que falte hasta la edad de jubilacion de 65 años (por jubilación anticipada a los 63 años), según la vida laboral. Sumar trimestres faltantes y multiplicar por el coeficiente. | E59: ='50-54 >15años'!C60 -> 2573.7
E60: Pensión anual
E61: ='50-54 >15años'!C62 -> 36031.8
A63: Ejemplo: Faltan 2 años = 8 trimestres. Hay que multiplicar 8 x 1,75% = 14% anual.
A64: A la pensión anual habría que descontarle el 14% para obtener la pensión real.
A66: Vida laboral: años oficiales cotizados a la Seguridad Social | E66: Coef. Red. Trim.
A67: Más de 44 años y 6 meses | E67: 0.015
A68: Igual o superior a 41 años y 6 meses | E68: 0.01625
A69: Igual o superior a 38 años y 6 meses e inferior a 41 años y 6 meses | E69: 0.0175
A70: Inferior a 38 años y 6 meses | E70: 0.01875
A72: INFORMACIÓN DE INTERES
A74: Trabajadores mayores de 55 años que pierden su empleo en un despido colectivo
A75: En el supuesto de trabajadores mayores de 55 años que pierden su empleo en un despido colectivo, que no tienen la condición de mutualista a 1 de enero de 1967, en una empresa no incursa en un procedimiento concursal, se impone al empresario la obligación de financiar un convenio especial de la Seguridad Social. Fuera del ámbito del despido colectivo por causas económicas, técnicas, organizativas o de producción no existe la citada obligación de financiar un convenio especial de la Seguridad Social. La solicitud del convenio especial debe realizarse durante el procedimiento de despido colectivo. El convenio especial es suscrito, por un lado, por el empresario y el trabajador, y, por otro lado, por la Tesorería General de la Seguridad Social.
A77: La finalidad del convenio especial.
A78: La suscripción del convenio especial determina la continuación de la situación de alta o asimilada a la de alta. El convenio especial tiene por objeto la cotización al Régimen de la Seguridad Social que corresponda y la cobertura de las situaciones derivadas de contingencias comunes. Quedan excluidas las situaciones de incapacidad temporal, maternidad y riesgo durante el embarazo y los subsidios correspondientes a las mismas. Asimismo, queda excluida la cotización y la protección por desempleo, Fondo de Garantía Salarial y formación profesional.
A80: La cotización
A81: La cotización en el convenio especial se realizará desde la fecha en que se produzca el cese en el trabajo o, en su caso, en que finalice la obligación de cotizar por extinción de la prestación por desempleo, y la fecha en que el trabajador cumpla la edad de 67 años, o 65 cuando se acrediten 38 años y 6 meses de cotización. Estas edades de jubilación y años de cotización no entrarán en vigor hasta el año 2027. Existe un período de transición hacia dichas edades y años de cotización. Para el año 2016, la edad de jubilación es de 65 años si se acreditan 36 o más años de cotización, o 65 años y 4 meses cuando se acrediten menos de 36 años de cotización. Las cotizaciones son a cargo del empresario hasta la fecha en que el trabajador cumpla los 63 años, salvo en los casos en que el despido colectivo haya tenido una causa económica, en este caso la obligación se extiende hasta que el trabajador cumpla los 61 años. Desde que el trabajador cumpla los 63 años o, en su caso, los 61 años, las aportaciones al convenio especial son a su exclusivo cargo y son obligatorias hasta que el trabajador cumpla la edad ordinaria de jubilación o, en su caso, acceda a la pensión de jubilación anticipada (es necesario ver la vida laboralpara saber los años cotizados hasta la fecha baja en el Banco y sumarle los restantes hasta cumplir los 63 años). En caso de fallecimiento del trabajador o de reconocimiento de una pensión de incapacidad permanente durante el periodo de cotización correspondiente al empresario, este tiene derecho al reintegro de las cuotas, siempre que se hubiesen ingresado en una fecha posterior al fallecimiento o reconocimiento de la pensión de incapacidad permanente.
A83: Si durante el periodo de cotización a cargo del empresario el trabajador realizase alguna actividad por la que se efectúen cotizaciones a la Seguridad Social, las cuotas coincidentes con las correspondientes a la actividad realizada, hasta la cuantía de estas últimas, se aplicarán al pago del convenio especial durante el período a cargo del trabajador.

Sheet Inmdenizacion legal (hidden)
A1: Cálculo de indemnización legal
A2: Primera parte | B2: Anterior a 12/02/2012 | C2: 45 | D2: días por año trabajado | F2: Maximo: | G2: 42 | H2: mensualidades | K2: NIVEL | L2: TOTAL ANUAL
G3: 2717 | K3: 1 | L3: 53538.1
G4: 742.71 | K4: 2 | L4: 46626.63
G5: 425.09 | K5: 3 | L5: 39813.91
G6: 251.18 | K6: 4 | L6: 38049.49
G7: 268.53 | K7: 5 | L7: 22231.65
G8: 510.86 | K8: 6 | L8: 31272.4
G9: 153 | K9: 7 | L9: 29835.04
G10: 14.89 | K10: 8 | L10: 28397.16
G11: 53.34 | K11: 9 | L11: 26428.15
G12: =SUM(G2:G11) -> 5178.6 | H12: Bruto mensual | K12: 10 | L12: 23814.57
K13: 11 | L13: 21698.86
G14: =G12*14 -> 72500.4 | H14: Bruto anual
G15: 2493.75 | H15: Incentivos
G16: 5667.28 | H16: CBS | I16: =G16/14 -> 404.8057143
G17: =SUM(G14:G16) -> 80661.43 | H17: Total anual
G18: =G17/12 -> 6721.785833 | H18: Media mensual
B19: 42 | C19: MENSUALIDADES | E19: =B19*30 -> 1260 | F19: DÍAS | G19: =G18/30 -> 224.0595278 | H19: Salario diario
C21: Primera parte | E21: =E19*G19 -> 282315.005 | G21: 45 días por año trabajado maximo 42 mensualiddes | K21: 1260
C22: Segunda parte | E22: =G19*K22 -> 161322.86 | G22: 33 días por año trabajado máximo 33 mensualidades | K22: =24*30 -> 720
E23: =SUM(E21:E22) -> 443637.865
C26: 2017 | D26: 2016 | E26: 2015 | F26: 2014 | G26: 2013 | H26: 2012 | I26: 2012 | J26: 2011 | K26: 2010 | L26: 2009
B27: =SUM(C27:H27) -> 60 | C27: 12 | D27: 12 | E27: 12 | F27: 12 | G27: 12 | J27: 12 | K27: 12 | L27: 12
B28: =SUM(C28:H28) -> 1868 | C28: 365 | D28: 365 | E28: 365 | F28: 365 | G28: 365 | H28: 43 | I28: =365-43 -> 322 | J28: 365 | K28: 365 | L28: 365

Sheet Tablas (hidden)
A1: nivel | B1: fecha | C1: Base de cotización | D1: Hijos | E1: Prestación | F1: baja50-54 mas 15 | G1: baja50-54 mas 15 | H1: baja50-54 mas 15 | I1: Prejubilacion | J1: ant prejus | O1: Año | Q1: Períodos cotizados | R1: Edad exigida
A2: 1 | B2: 1948-01-01 | C2: 825.6 | D2: 0 | E2: 1098.09 | F2: 1964 | G2: =2018-F2 -> 54 | H2: 2003 | I2: 1957 | O2: 2013 | Q2: 35 años y 3 meses o más | R2: 65 años
A3: 2 | B3: 1948-01-02 | C3: 831.6 | D3: 1 | E3: 1254.96 | F3: 1965 | G3: =2018-F3 -> 53 | H3: 2004 | I3: 1958 | Q3: Menos de 35 años y 3 meses | R3: 65 años y 1 mes
A4: 3 | B4: 1948-01-03 | C4: 956.1 | D4: 2 | E4: 1411.83 | F4: 1966 | G4: =2018-F4 -> 52 | H4: 2005 | I4: 1959 | O4: 2014 | Q4: 35 años y 6 meses o más | R4: 65 años
A5: 4 | B5: 1948-01-04 | C5: 1152.9 | D5: 3 | E5: 1411.83 | F5: 1967 | G5: =2018-F5 -> 51 | H5: 2006 | I5: 1960 | Q5: Menos de 35 años y 6 meses | R5: 65 años y 2 meses
A6: 5 | B6: 1948-01-05 | C6: 3751.2 | D6: 4 | E6: 1411.83 | F6: 1968 | G6: =2018-F6 -> 50 | H6: 2007 | I6: 1961 | O6: 2015 | Q6: 35 años y 9 meses o más | R6: 65 años
A7: 6 | B7: 1948-01-06 | D7: 5 | E7: 1411.83 | H7: 2008 | I7: 1962 | Q7: Menos de 35 años y 9 meses | R7: 65 años y 3 meses
A8: 7 | B8: 1948-01-07 | D8: 6 | E8: 1411.83 | H8: 2009 | I8: 1963 | O8: 2016 | Q8: 36 o más años | R8: 65 años
A9: 8 | B9: 1948-01-08 | D9: 7 | E9: 1411.83 | H9: 2010 | Q9: Menos de 36 años | R9: 65 años y 4 meses
A10: 9 | B10: 1948-01-09 | D10: 8 | E10: 1411.83 | H10: 2011 | O10: 2017 | Q10: 36 años y 3 meses o más | R10: 65 años
A11: 10 | B11: 1948-01-10 | D11: 9 | E11: 1411.83 | H11: 2012 | Q11: Menos de 36 años y 3 meses | R11: 65 años y 5 meses
A12: 11 | B12: 1948-01-11 | D12: 10 | E12: 1411.83 | H12: 2013 | O12: 2018 | Q12: 36 años y 6 meses o más | R12: 65 años
B13: 1948-01-12 | D13: 11 | E13: 1411.83 | H13: 2014 | Q13: Menos de 36 años y 6 meses | R13: 65 años y 6 meses
B14: 1948-01-13 | D14: 12 | E14: 1411.83 | H14: 2015 | O14: 2019 | Q14: 36 años y 9 meses o más | R14: 65 años
B15: 1948-01-14 | H15: 2016 | Q15: Menos de 36 años y 9 meses | R15: 65 años y 8 meses
B16: 1948-01-15 | H16: 2017 | O16: 2020 | Q16: 37 o más años | R16: 65 años
B17: 1948-01-16 | Q17: Menos de 37 años | R17: 65 años y 10 meses
B18: 1948-01-17 | O18: 2021 | Q18: 37 años y 3 meses o más | R18: 65 años
B19: 1948-01-18 | Q19: Menos de 37 años y 3 meses | R19: 66 años
B20: 1948-01-19 | O20: 2022 | Q20: 37 años y 6 meses o más | R20: 65 años
B21: 1948-01-20 | Q21: Menos de 37 años y 6 meses | R21: 66 años y 2 meses
B22: 1948-01-21 | O22: 2023 | Q22: 37 años y 9 meses o más | R22: 65 años
B23: 1948-01-22 | Q23: Menos de 37 años y 9 meses | R23: 66 años y 4 meses
B24: 1948-01-23 | O24: 2024 | Q24: 38 o más años | R24: 65 años
B25: 1948-01-24 | Q25: Menos de 38 años | R25: 66 años y 6 meses
B26: 1948-01-25 | O26: 2025 | Q26: 38 años y 3 meses o más | R26: 65 años
B27: 1948-01-26 | Q27: Menos de 38 años y 3 meses | R27: 66 años y 8 meses
B28: 1948-01-27 | O28: 2026 | Q28: 38 años y 3 meses o más | R28: 65 años
B29: 1948-01-28 | Q29: Menos de 38 años y 3 meses | R29: 66 años y 10 meses
B30: 1948-01-29 | O30: A partir de 2027 | Q30: 38 años y 6 meses o más | R30: 65 años
B31: 1948-01-30 | Q31: Menos de 38 años y 6 meses | R31: 67 años
B32: 1948-01-31
B33: 1948-02-01
B34: 1948-02-02
B35: 1948-02-03
B36: 1948-02-04
B37: 1948-02-05
B38: 1948-02-06
B39: 1948-02-07
B40: 1948-02-08
B41: 1948-02-09
B42: 1948-02-10
B43: 1948-02-11
B44: 1948-02-12
B45: 1948-02-13
B46: 1948-02-14
B47: 1948-02-15
B48: 1948-02-16
B49: 1948-02-17
B50: 1948-02-18
B51: 1948-02-19
B52: 1948-02-20
B53: 1948-02-21
B54: 1948-02-22
B55: 1948-02-23
B56: 1948-02-24
B57: 1948-02-25
B58: 1948-02-26
B59: 1948-02-27
B60: 1948-02-28
B61: 1948-02-29
B62: 1948-03-01
B63: 1948-03-02
B64: 1948-03-03
B65: 1948-03-04
B66: 1948-03-05
B67: 1948-03-06
B68: 1948-03-07
B69: 1948-03-08
B70: 1948-03-09
B71: 1948-03-10
B72: 1948-03-11
B73: 1948-03-12
B74: 1948-03-13
B75: 1948-03-14
B76: 1948-03-15
B77: 1948-03-16
B78: 1948-03-17
B79: 1948-03-18
B80: 1948-03-19
B81: 1948-03-20
B82: 1948-03-21
B83: 1948-03-22
B84: 1948-03-23
B85: 1948-03-24
B86: 1948-03-25
B87: 1948-03-26
B88: 1948-03-27
B89: 1948-03-28
B90: 1948-03-29
B91: 1948-03-30
B92: 1948-03-31
B93: 1948-04-01
B94: 1948-04-02
B95: 1948-04-03
B96: 1948-04-04
B97: 1948-04-05
B98: 1948-04-06
B99: 1948-04-07
B100: 1948-04-08
B101: 1948-04-09
B102: 1948-04-10
B103: 1948-04-11
B104: 1948-04-12
B105: 1948-04-13
B106: 1948-04-14
B107: 1948-04-15
B108: 1948-04-16
B109: 1948-04-17
B110: 1948-04-18
B111: 1948-04-19
B112: 1948-04-20
B113: 1948-04-21
B114: 1948-04-22
B115: 1948-04-23
B116: 1948-04-24
B117: 1948-04-25
B118: 1948-04-26
B119: 1948-04-27
B120: 1948-04-28
B121: 1948-04-29
B122: 1948-04-30
B123: 1948-05-01
B124: 1948-05-02
B125: 1948-05-03
B126: 1948-05-04
B127: 1948-05-05
B128: 1948-05-06
B129: 1948-05-07
B130: 1948-05-08
B131: 1948-05-09
B132: 1948-05-10
B133: 1948-05-11
B134: 1948-05-12
B135: 1948-05-13
B136: 1948-05-14
B137: 1948-05-15
B138: 1948-05-16
B139: 1948-05-17
B140: 1948-05-18
B141: 1948-05-19
B142: 1948-05-20
B143: 1948-05-21
B144: 1948-05-22
B145: 1948-05-23
B146: 1948-05-24
B147: 1948-05-25
B148: 1948-05-26
B149: 1948-05-27
B150: 1948-05-28
B151: 1948-05-29
B152: 1948-05-30
B153: 1948-05-31
B154: 1948-06-01
B155: 1948-06-02
B156: 1948-06-03
B157: 1948-06-04
B158: 1948-06-05
B159: 1948-06-06
B160: 1948-06-07
B161: 1948-06-08
B162: 1948-06-09
B163: 1948-06-10
B164: 1948-06-11
B165: 1948-06-12
B166: 1948-06-13
B167: 1948-06-14
B168: 1948-06-15
B169: 1948-06-16
B170: 1948-06-17
B171: 1948-06-18
B172: 1948-06-19
B173: 1948-06-20
B174: 1948-06-21
B175: 1948-06-22
B176: 1948-06-23
B177: 1948-06-24
B178: 1948-06-25
B179: 1948-06-26
B180: 1948-06-27
B181: 1948-06-28
B182: 1948-06-29
B183: 1948-06-30
B184: 1948-07-01
B185: 1948-07-02
B186: 1948-07-03
B187: 1948-07-04
B188: 1948-07-05
B189: 1948-07-06
B190: 1948-07-07
B191: 1948-07-08
B192: 1948-07-09
B193: 1948-07-10
B194: 1948-07-11
B195: 1948-07-12
B196: 1948-07-13
B197: 1948-07-14
B198: 1948-07-15
B199: 1948-07-16
B200: 1948-07-17
... 33404 more rows

Sheet Calculo 40 días (hidden)
A1: CALCULO DE BAJAS INCENTIVADAS | E1: Cálculos orientativos no vinculantes | O1: Antigüedad | P1: Primas | T1: Hijos | U1: Prestación
A2: 50 a 54 años | B2: con más de 15 años de antigüedad | K2: Año | L2: 2018 | O2: 5 | P2: 4000 | T2: 0 | U2: 1098.09
O3: 5 | P3: 4000 | T3: 1 | U3: 1254.96
A4: Datos personales | E4: Edad en 2018 | G4: =DATEDIF(C$5,C$8,"Y") ->  | O4: 7 | P4: 4000 | T4: 2 | U4: 1411.83
B5: Fecha de nacimiento | C5: =Principal!B7 -> 00:00:00 | D5: Antigüedad | E5: =DATEDIF(C$7,C$8,"Y")& " años " & DATEDIF(C$7,C$8,"YM") & " meses y " & DATEDIF(C$7,C$8,"MD")& " días " ->  | O5: 8 | P5: 9000 | T5: 3 | U5: 1411.83
B6: Fecha de hoy | C6: =TODAY() -> 2026-02-05 | F6: Años de antigüedad | G6: =DATEDIF(C$7,C$8,"Y") ->  | L6: Salario pensionable Anual | M6: En 14 pagas | O6: 9 | P6: 9000 | T6: 4 | U6: 1411.83
B7: Fecha de entrada en el Banco | C7: =Principal!#REF! ->  | E7: Trienios Completos de Antigüedad | F7: =G6/3 ->  | G7: =ROUNDDOWN(F7,0) ->  | K7: 1 | L7: 54475.01 | M7: =L7/14 -> 3891.072143 | N7: por paga | O7: 10 | P7: 14000 | T7: 5 | U7: 1411.83
B8: Fecha de baja en el Banco | C8: =Principal!#REF! ->  | F8: Base de contingencias comunes (última nómina) | G8: =Principal!#REF! ->  | K8: 2 | L8: 47442.6 | M8: =L8/14 -> 3388.757143 | N8: por paga | O8: 11 | P8: 14000 | T8: 6 | U8: 1411.83
B9: Nivel técnico de convenio | C9: =Principal!#REF! ->  | F9: Nº Hijos a su cargo (<26 años o con discapacidad >33%) | G9: =Principal!#REF! ->  | H9: Hijos | K9: 3 | L9: 40516.66 | M9: 2894.047143 | N9: por paga | O9: 12 | P9: 14000 | T9: 7 | U9: 1411.83
K10: 4 | L10: 38715.35 | M10: 2765.382143 | N10: por paga | O10: 13 | P10: 14000 | T10: 8 | U10: 1411.83
A11: Datos de la última nómina (normal sin pagas extra) | E11: Cálculo del salario anual pensionable | K11: 5 | L11: 33813.21 | M11: 2415.229286 | N11: por paga | O11: 14 | P11: 14000 | T11: 9 | U11: 1411.83
B12: Salario Base de nivel por paga | C12: =VLOOKUP(C9,K7:M19,3,FALSE) ->  | F12: Salario Bruto Anual Pensionable de Convenio | G12: =C12*14 ->  | K12: 6 | L12: 31819.66 | M12: 2272.832857 | N12: por paga | O12: 15 | P12: 19000 | T12: 10 | U12: 1411.83
B13: Trienios de Antigüedad por paga | C13: =Principal!#REF! ->  | F13: Importe anual a percibir por trienios de antigüedad | G13: =G6*M21 ->  | K13: 7 | L13: 30357.16 | M13: 2168.368571 | N13: por paga | O13: 16 | P13: 19000 | T13: 11 | U13: 1411.83
B14: Trienios Técnicos por paga | C14: =Principal!#REF! ->  | F14: Importe anual a percibir por trienios técnicos | G14: =C14*14 ->  | K14: 8 | L14: 28894.11 | M14: 2063.865 | N14: por paga | O14: 17 | P14: 19000 | T14: 12 | U14: 1411.83
B15: Participación en Beneficios | C15: =Principal!#REF! ->  | F15: Importe anual a percibir por Participacion en Beneficios | G15: =C15*14 ->  | O15: 18 | P15: 19000
B16: Otros conceptos mensuales reconocidos | C16: =Principal!#REF! ->  | F16: Importe anual a percibir por otros conceptos reconocidos | G16: =C16*14 ->  | K16: 9 | L16: 26890.64 | M16: 1920.76 | N16: por paga | O16: 19 | P16: 19000
F17: Complemento voluntario personal | G17: ='Acceso a 40 días por año'!G12*14 -> 4900 | O17: 20 | P17: 24000
A18: Total salario por paga pensionable | C18: =SUM(C12:C16) ->  | D18: Total salario anual pensionable | G18: =SUM(G12:G17) ->  | K18: 10 | L18: 24231.32 | M18: 1730.808571 | N18: por paga | O18: 21 | P18: 24000
K19: 11 | L19: 22078.59 | M19: 1577.042143 | N19: por paga | O19: 22 | P19: 24000
A20: Indemnización | D20: Meses de antigüedad | E20: Primas | O20: 23 | P20: 24000
A21: Variable 2017 | B21: Complemento Voluntario Anual | C21: =Principal!#REF!*14 ->  | D21: =DATEDIF(C$7,C$8,"y") ->  | E21: Por antigüedad | G21: =VLOOKUP(G6,O2:$P$53,2,FALSE) ->  | L21: Importe de convenio por trienio 2018 | M21: 470 | O21: 24 | P21: 24000
A22: Fijo 2018 | B22: Total salario anual | C22: =G18 ->  | E22: Por trienios | G22: =2000*G7 ->  | O22: 25 | P22: 30000
B23: Total Fijo + Variable | C23: =SUM(C21:C22) ->  | E23: Total Primas | G23: =SUM(G21:G22) ->  | O23: 26 | P23: 30000
O24: 27 | P24: 30000
A25: Salario diario | B25: =C23/365 ->  | C25: Indemniz.40 días/año | E25: Abono Total por Baja Incentivada | O25: 28 | P25: 30000
B26: 40 dias por año | C26: =B25*40*D21 ->  | E26: Indemnización | G26: =C28 ->  | O26: 29 | P26: 30000
A27: Antigüedad | B27: =E5 ->  | C27: Indemniz. 2 anualidades máx. | E27: Primas | G27: =G23 ->  | O27: 30 | P27: 30000
C28: =C26*2 ->  | E28: TOTAL BRUTO FINAL A PERCIBIR | G28: =SUM(G26:G27) ->  | K28: Prima por antigüedad | O28: 31 | P28: 30000
O29: 32 | P29: 30000
L30: Entre 15 y 20 años | M30: 19000 | O30: 33 | P30: 30000
L31: Entre 20 y 25 años | M31: 24000 | O31: 34 | P31: 30000
L32: Mayor de 25 años | M32: 30000 | O32: 35 | P32: 30000
K33: Prima por trienio | O33: 36 | P33: 30000
K34: 2000 | L34: 30 | M34: Años de antigüedad | O34: 37 | P34: 30000
A35: Fiscalidad | O35: 38 | P35: 30000
A36: Siempre en función de la base imponible de cada persona y definida en la Renta del IRPF. El 30% del exceso sobre el máximo de 180 mil € está exento por considerarse renta irregular. Tributa sólo el 70% del exceso. | L36: =#REF!*60 ->  | M36: Indemnización por año de trabajo | O36: 39 | P36: 30000
O37: 40 | P37: 30000
A38: Total bruto | D38: =G33-D36 -> 0 | L38: =IF(L34>=25,M32,IF(L34>=15,M31,IF(L34<15,M30))) -> 30000 | M38: Prima por antigüedad | O38: 41 | P38: 30000
A39: Prestación de desempleo a percibir por 2 años | D39: =VLOOKUP(G9,T2:$U$14,2,FALSE)*24 ->  | L39: =#REF!+L38 ->  | M39: TOTAL INDEMNIZACION | O39: 42 | P39: 30000
C40: Total a percibir | D40: =SUM(D38:E39) ->  | O40: 43 | P40: 30000
O41: 44 | P41: 30000
O42: 45 | P42: 30000
O43: 46 | P43: 30000
O44: 47 | P44: 30000
O45: 48 | P45: 30000
O46: 49 | P46: 30000
O47: 50 | P47: 30000
A48: Prestación de desempleo (2 años) | O48: 51 | P48: 30000
A49: Base de contingencias comunes (última nómina) | C49: =G8 ->  | E49: Prestación Máxima | O49: 51 | P49: 30000
D50: 2017 | E50: Mensual | G50: Anual | O50: 52 | P50: 30000
A51: Cotización de la empresa mes 6 | C51: =C49 ->  | D51: Sin hijos | E51: 1098.09 | G51: =U2*12 -> 13177.08 | O51: 53 | P51: 30000
A52: Cotización de la empresa mes 5 | C52: =C51 ->  | D52: Con 1 hijo a su cargo | E52: 1254.96 | G52: =U3*12 -> 15059.52 | O52: 54 | P52: 30000
A53: Cotización de la empresa mes 4 | C53: =C52 ->  | D53: Con 2 o más hijos a su cargo | E53: 1411.83 | G53: =U4*12 -> 16941.96 | O53: 55 | P53: 30000
A54: Cotización de la empresa mes 3 | C54: =C53 ->  | D54: (hijos menores de 26 años o mayores o con discapacidad igual o superior al 33%)
A55: Cotización de la empresa mes 2 | C55: =C54 ->  | E55: Dias cotizados en los últimos 6 años, desde | F55: 2160 | G55: días
A56: Cotización de la empresa mes 1 | C56: =C55 ->  | E56: Derecho a duración de la prestación | F56: 720 | G56: días (2 años)
A57: Total cotizado por la empresa últimos 6 meses | C57: =SUM(C51:C56) ->  | E57: Base reguladora mensual | F57: =C57/180*30 -> 
A59: Seguridad Social
A60: Convenio Especial, cotización máxima a cargo del Banco hasta los 63 años (edad para la jubilación anticipada) | C60: Cuota mensual | D60: Ejemplo | E60: Trimestres Faltantes hasta 65 años | H60: 8
C61: 957 | E61: Años cotizados (según vida laboral) | H61: 39
C62: Cuota anual | E62: Coef. Reductor a aplicar | H62: 0.0175
A63: (Cada mes. se adeuda al empleado y 2 días despúes el Banco lo abona). | C63: =C61*12 -> 11484 | E63: (Multiplicar 8 x 1,75% = 14% anual)
C65: Paga (14 pagas) | E65: Porcentaje a descontar a la pensión anual | H65: =H60*H62 -> 0.14
B66: Actualizada a 2017 | C66: 2573.7 | E66: Paga real (a 14) | F66: Descuento por paga
A67: Pensión máxima (14 pagas) de la Seguridad social a partir de los 63 años | C67: Pensión anual | E67: =E69/14 -> 2213.382 | F67: =+C66-E67 -> 360.318
C68: =C66*14 -> 36031.8 | E68: Paga anual real | F68: Descuento anual
E69: =+C68-F69 -> 30987.348 | F69: =C68*0.14 -> 5044.452
A70: Coeficiente reductor que corresponda por cada trimestre que falte hasta la edad de jubilacion de 65 años (por jubilación anticipada a los 63 años), según la vida laboral. Sumar trimestres faltantes y multiplicar por el coeficiente. | C70: Coef. Red. Trim.
C71: 0.015 | D71: Más de 44 años y 6 meses
C72: 0.01625 | D72: Igual o superior a 41 años y 6 meses
C73: 0.0175 | D73: Igual o superior a 38 años y 6 meses e inferior a 41 años y 6 meses
C74: 0.01875 | D74: Inferior a 38 años y 6 meses
A76: Trabajadores mayores de 55 años que pierden su empleo en un despido colectivo En el supuesto de trabajadores mayores de 55 años que pierden su empleo en un despido colectivo, que no tienen la condición de mutualista a 1 de enero de 1967, en una empresa no incursa en un procedimiento concursal, se impone al empresario la obligación de financiar un convenio especial de la Seguridad Social. Fuera del ámbito del despido colectivo por causas económicas, técnicas, organizativas o de producción no existe la citada obligación de financiar un convenio especial de la Seguridad Social. La solicitud del convenio especial debe realizarse durante el procedimiento de despido colectivo. El convenio especial es suscrito, por un lado, por el empresario y el trabajador, y, por otro lado, por la Tesorería General de la Seguridad Social.
A77: La finalidad del convenio especial
A79: La finalidad del convenio especial. La suscripción del convenio especial determina la continuación de la situación de alta o asimilada a la de alta. El convenio especial tiene por objeto la cotización al Régimen de la Seguridad Social que corresponda y la cobertura de las situaciones derivadas de contingencias comunes. Quedan excluidas las situaciones de incapacidad temporal, maternidad y riesgo durante el embarazo y los subsidios correspondientes a las mismas. Asimismo, queda excluida la cotización y la protección por desempleo, Fondo de Garantía Salarial y formación profesional.
A81: La cotización
A82: La cotización en el convenio especial se realizará desde la fecha en que se produzca el cese en el trabajo o, en su caso, en que finalice la obligación de cotizar por extinción de la prestación por desempleo, y la fecha en que el trabajador cumpla la edad de 67 años, o 65 cuando se acrediten 38 años y 6 meses de cotización. Estas edades de jubilación y años de cotización no entrarán en vigor hasta el año 2027. Existe un período de transición hacia dichas edades y años de cotización. Para el año 2016, la edad de jubilación es de 65 años si se acreditan 36 o más años de cotización, o 65 años y 4 meses cuando se acrediten menos de 36 años de cotización. Las cotizaciones son a cargo del empresario hasta la fecha en que el trabajador cumpla los 63 años, salvo en los casos en que el despido colectivo haya tenido una causa económica, en este caso la obligación se extiende hasta que el trabajador cumpla los 61 años. Desde que el trabajador cumpla los 63 años o, en su caso, los 61 años, las aportaciones al convenio especial son a su exclusivo cargo y son obligatorias hasta que el trabajador cumpla la edad ordinaria de jubilación o, en su caso, acceda a la pensión de jubilación anticipada (es necesario ver la vida laboralpara saber los años cotizados hasta la fecha baja en el Banco y sumarle los restantes hasta cumplir los 63 años). En caso de fallecimiento del trabajador o de reconocimiento de una pensión de incapacidad permanente durante el periodo de cotización correspondiente al empresario, este tiene derecho al reintegro de las cuotas, siempre que se hubiesen ingresado en una fecha posterior al fallecimiento o reconocimiento de la pensión de incapacidad permanente.
A84: Si durante el periodo de cotización a cargo del empresario el trabajador realizase alguna actividad por la que se efectúen cotizaciones a la Seguridad Social, las cuotas coincidentes con las correspondientes a la actividad realizada, hasta la cuantía de estas últimas, se aplicarán al pago del convenio especial durante el período a cargo del trabajador.

Sheet Prejus (hidden)
A1: CALCULO DE PREJUBILACIONES | E1: Cálculos orientativos no vinculantes | N1: Antigüedad | O1: Primas | S1: Hijos | T1: Prestación
A2: 55 a 62 años | B2: con más de 15 años de antigüedad | J2: Año | K2: 2018 | N2: 15 | O2: 19000 | S2: 0 | T2: 1098.09
N3: 16 | O3: 19000 | S3: 1 | T3: 1254.96
A4: Datos personales | E4: Edad en 2018 | G4: =DATEDIF(C$5,C$8,"Y") ->  | H4: años | N4: 17 | O4: 19000 | S4: 2 | T4: 1411.83
B5: Fecha de nacimiento | C5: =Principal!B7 -> 00:00:00 | D5: Antigüedad | E5: =DATEDIF(C$7,C$8,"Y")& " años, " & DATEDIF(C$7,C$8,"YM") & " meses y " & DATEDIF(C$7,C$8,"MD")& " días " ->  | N5: 18 | O5: 19000 | S5: 3 | T5: 1411.83
B6: Fecha de hoy | C6: =TODAY() -> 2026-02-05 | F6: Años de antigüedad | G6: =DATEDIF(C$7,C$8,"Y") ->  | K6: Salario pensionable Anual | L6: En 14 pagas | N6: 19 | O6: 19000 | S6: 4 | T6: 1411.83
B7: Fecha de entrada en el Banco | C7: =Principal!#REF! ->  | E7: Trienios Completos de Antigüedad | F7: =G6/3 ->  | G7: =ROUNDDOWN(F7,0) ->  | J7: 1 | K7: 54475.01 | L7: =K7/14 -> 3891.072143 | M7: por paga | N7: 20 | O7: 24000 | S7: 5 | T7: 1411.83
B8: Fecha de baja en el Banco | C8: =Principal!#REF! ->  | F8: Base de contingencias comunes (última nómina) | G8: =Principal!#REF! ->  | J8: 2 | K8: 47442.6 | L8: =K8/14 -> 3388.757143 | M8: por paga | N8: 21 | O8: 24000 | S8: 6 | T8: 1411.83
B9: Nivel técnico de convenio | C9: =Principal!#REF! ->  | F9: Nº Hijos a su cargo (<26 años o con discapacidad >33%) | G9: =Principal!#REF! ->  | H9: Hijos | J9: 3 | K9: 40516.66 | L9: 2894.047143 | M9: por paga | N9: 22 | O9: 24000 | S9: 7 | T9: 1411.83
J10: 4 | K10: 38715.35 | L10: 2765.382143 | M10: por paga | N10: 23 | O10: 24000 | S10: 8 | T10: 1411.83
A11: Datos de la última nómina (normal sin pagas extra) | E11: Cálculo del salario anual pensionable | J11: 5 | K11: 33813.21 | L11: 2415.229286 | M11: por paga | N11: 24 | O11: 24000 | S11: 9 | T11: 1411.83
B12: Salario Base de nivel por paga | C12: =VLOOKUP(C9,J7:L18,3,FALSE) ->  | F12: Salario Bruto Anual Pensionable de Convenio | G12: =C12*14 ->  | J12: 6 | K12: 31819.66 | L12: 2272.832857 | M12: por paga | N12: 25 | O12: 30000 | S12: 10 | T12: 1411.83
B13: Trienios de Antigüedad por paga | C13: =Principal!#REF! ->  | F13: Importe anual a percibir por trienios de antigüedad | G13: =C13*14 ->  | J13: 7 | K13: 30357.16 | L13: 2168.368571 | M13: por paga | N13: 26 | O13: 30000 | S13: 11 | T13: 1411.83
B14: Trienios Técnicos por paga | C14: =Principal!#REF! ->  | F14: Importe anual a percibir por trienios técnicos | G14: =C14*14 ->  | J14: 8 | K14: 28894.11 | L14: 2063.865 | M14: por paga | N14: 27 | O14: 30000 | S14: 12 | T14: 1411.83
B15: Participación en Beneficios | C15: =Principal!#REF! ->  | F15: Importe anual a percibir por Participacion en Beneficios | G15: =C15*14 ->  | J15: 9 | K15: 26890.64 | L15: 1920.76 | M15: por paga | N15: 28 | O15: 30000
B16: Otros conceptos mensuales reconocidos | C16: =Principal!#REF! ->  | F16: Importe anual a percibir por otros conceptos reconocidos | G16: =C16*14 -> 
A17: Total salario por paga pensionable | C17: =SUM(C12:C16) ->  | D17: Total salario anual pensionable | G17: =SUM(G12:G16) ->  | J17: 10 | K17: 24231.32 | L17: 1730.808571 | M17: por paga | N17: 29 | O17: 30000
J18: 11 | K18: 22078.59 | L18: 1577.042143 | M18: por paga | N18: 30 | O18: 30000
A19: Indemnización TRAMO 55-57 | E19: Compl. Voluntario No pensionable | N19: 31 | O19: 30000
A20: Opción A | B20: 74% del Salario Anual Pensionable | C20: =G17*0.74 ->  | E20: =Principal!#REF!*14 ->  | K20: Importe de convenio por trienio 2018 | L20: 470 | N20: 32 | O20: 30000
N21: 33 | O21: 30000
A22: Opción B | B22: 67% del Salario Anual Pensionable | C22: =G17*0.67 ->  | N22: 34 | O22: 30000
B23: 54% del Complemento Personal | C23: =E20*0.54 ->  | D23: Opción más beneficiosa | E23: Anual | F23: Mensual | N23: 35 | O23: 30000
C25: =SUM(C22:C23) ->  | D25: =IF(C20>C25,"A","B") ->  | E25: =IF(C20>C25,C20,C25) ->  | F25: =E25/12 ->  | N25: 36 | O25: 30000
A27: Indemnización TRAMO 58-61 | N27: 40 | O27: 30000
A28: Opción A | B28: 76% del Salario Anual Pensionable | C28: =G17*0.76 ->  | N28: 41 | O28: 30000
N29: 42 | O29: 30000
A30: Opción B | B30: 70% del Salario Anual Pensionable | C30: =G17*0.7 ->  | O30: 30000
B31: 56% del Complemento Personal | C31: =E20*0.56 ->  | D31: Opción más beneficiosa | E31: Mensual (3 años restantes) | N31: 44 | O31: 30000
C32: =SUM(C30:C31) ->  | D32: =IF(C28>C32,"A","B") ->  | E32: =F25 ->  | N32: 45 | O32: 30000
A33: Prestación de desempleo mensual a percibir por 2 años | D33: =E44 -> 1098.09 | E33: 0 | N33: 46 | O33: 30000
C34: Total a percibir | D34: =SUM(D32:D33) ->  | E34: =SUM(E32:E33) ->  | N34: 47 | O34: 30000
A36: Jubilación anticipada | N36: 48 | O36: 30000
A37: Años hasta cumplir 63 | B37: =63-G4 ->  | C37: Convenio Especial, cotización máxima a cargo del Banco hasta los 63 años (edad para la jubilación anticipada) | N37: 49 | O37: 30000
A38: Cumples 65 años en | B38: =PENSIONES!I4 -> 1965
A39: Fecha de jubilación | B39: =PENSIONES!G5 -> 1964-12-31 | C39: Total cotizado en el Banco | D39: =PENSIONES!H7 ->  | N39: 50 | O39: 30000
N40: 52 | O40: 30000
A41: Prestación de desempleo (2 años) | N41: 53 | O41: 30000
A42: Base de contingencias comunes (última nómina) | C42: =G8 ->  | E42: Prestación Máxima | F42: 2017 | N42: 54 | O42: 30000
E43: Mensual | G43: Anual | N43: 55 | O43: 30000
A44: Cotización de la empresa mes 6 | C44: =C42 ->  | D44: Sin hijos | E44: 1098.09 | G44: =T2*12 -> 13177.08
A45: Cotización de la empresa mes 5 | C45: =C44 ->  | D45: Con 1 hijo a su cargo | E45: 1254.96 | G45: =T3*12 -> 15059.52
A46: Cotización de la empresa mes 4 | C46: =C45 ->  | D46: Con 2 o más hijos a su cargo | E46: 1411.83 | G46: =T4*12 -> 16941.96
A47: Cotización de la empresa mes 3 | C47: =C46 ->  | D47: (hijos menores de 26 años o mayores o con discapacidad igual o superior al 33%)
A48: Cotización de la empresa mes 2 | C48: =C47 ->  | E48: Dias cotizados en los últimos 6 años, desde | F48: 2160 | G48: días
A49: Cotización de la empresa mes 1 | C49: =C48 ->  | E49: Derecho a duración de la prestación | F49: 720 | G49: días (2 años)
A50: Total cotizado por la empresa últimos 6 meses | C50: =SUM(C44:C49) ->  | E50: Base reguladora mensual | F50: =C50/180*30 -> 
A52: Seguridad Social
A53: Convenio Especial, cotización máxima a cargo del Banco hasta los 63 años (edad para la jubilación anticipada) | C53: Cuota mensual | E53: Trimestres Faltantes hasta 65 años | F53: 8 | G53: Jubilacion anticipada a los 63
C54: 957 | E54: Coef. Reductor Trimestral a aplicar | F54: =PENSIONES!G11 -> 
C55: Cuota anual | E55: Disminucion anual de pensión | F55: =PENSIONES!G13 -> 
A56: (Cada mes. se adeuda al empleado y 2 días despúes el Banco lo abona). | C56: =C54*12 -> 11484
C58: Paga (14 pagas)
B59: Actualizada a 2017 | C59: 2573.7 | E59: Paga real (a 14) | F59: Descuento por paga
A60: Pensión máxima (14 pagas) de la Seguridad social a partir de los 63 años | C60: Pensión anual | E60: =E62/14 ->  | F60: =+C59-E60 -> 
C61: =C59*14 -> 36031.8 | E61: Paga anual real | F61: Descuento anual
E62: =+C61-F62 ->  | F62: =C61*F55 -> 
A63: Coeficiente reductor que corresponda por cada trimestre que falte hasta la edad de jubilacion de 65 años (por jubilación anticipada a los 63 años), según la vida laboral. Sumar trimestres faltantes y multiplicar por el coeficiente. | C63: Coef. Red. Trim.
C64: 0.015 | D64: Más de 44 años y 6 meses
C65: 0.01625 | D65: Igual o superior a 41 años y 6 meses
C66: 0.0175 | D66: Igual o superior a 38 años y 6 meses e inferior a 41 años y 6 meses
C67: 0.01875 | D67: Inferior a 38 años y 6 meses
A70: Trabajadores mayores de 55 años que pierden su empleo en un despido colectivo En el supuesto de trabajadores mayores de 55 años que pierden su empleo en un despido colectivo, que no tienen la condición de mutualista a 1 de enero de 1967, en una empresa no incursa en un procedimiento concursal, se impone al empresario la obligación de financiar un convenio especial de la Seguridad Social. Fuera del ámbito del despido colectivo por causas económicas, técnicas, organizativas o de producción no existe la citada obligación de financiar un convenio especial de la Seguridad Social. La solicitud del convenio especial debe realizarse durante el procedimiento de despido colectivo. El convenio especial es suscrito, por un lado, por el empresario y el trabajador, y, por otro lado, por la Tesorería General de la Seguridad Social.
A77: La finalidad del convenio especial. La suscripción del convenio especial determina la continuación de la situación de alta o asimilada a la de alta. El convenio especial tiene por objeto la cotización al Régimen de la Seguridad Social que corresponda y la cobertura de las situaciones derivadas de contingencias comunes. Quedan excluidas las situaciones de incapacidad temporal, maternidad y riesgo durante el embarazo y los subsidios correspondientes a las mismas. Asimismo, queda excluida la cotización y la protección por desempleo, Fondo de Garantía Salarial y formación profesional.
A79: La cotización
A85: La cotización en el convenio especial se realizará desde la fecha en que se produzca el cese en el trabajo o, en su caso, en que finalice la obligación de cotizar por extinción de la prestación por desempleo, y la fecha en que el trabajador cumpla la edad de 67 años, o 65 cuando se acrediten 38 años y 6 meses de cotización. Estas edades de jubilación y años de cotización no entrarán en vigor hasta el año 2027. Existe un período de transición hacia dichas edades y años de cotización. Para el año 2016, la edad de jubilación es de 65 años si se acreditan 36 o más años de cotización, o 65 años y 4 meses cuando se acrediten menos de 36 años de cotización. Las cotizaciones son a cargo del empresario hasta la fecha en que el trabajador cumpla los 63 años, salvo en los casos en que el despido colectivo haya tenido una causa económica, en este caso la obligación se extiende hasta que el trabajador cumpla los 61 años. Desde que el trabajador cumpla los 63 años o, en su caso, los 61 años, las aportaciones al convenio especial son a su exclusivo cargo y son obligatorias hasta que el trabajador cumpla la edad ordinaria de jubilación o, en su caso, acceda a la pensión de jubilación anticipada (es necesario ver la vida laboralpara saber los años cotizados hasta la fecha baja en el Banco y sumarle los restantes hasta cumplir los 63 años). En caso de fallecimiento del trabajador o de reconocimiento de una pensión de incapacidad permanente durante el periodo de cotización correspondiente al empresario, este tiene derecho al reintegro de las cuotas, siempre que se hubiesen ingresado en una fecha posterior al fallecimiento o reconocimiento de la pensión de incapacidad permanente.
A87: Si durante el periodo de cotización a cargo del empresario el trabajador realizase alguna actividad por la que se efectúen cotizaciones a la Seguridad Social, las cuotas coincidentes con las correspondientes a la actividad realizada, hasta la cuantía de estas últimas, se aplicarán al pago del convenio especial durante el período a cargo del trabajador.

Sheet PENSIONES (hidden)
A1: N | B1: AÑO | C1: COTIZADO | E1: fecha | J1: AÑO | K1: EDAD | L1: Coef. Red. Trim. | O1: AÑOS | P1: COEFIC | Q1: AÑOS | R1: MESES | S1: COEFICIENTE
A2: 1 | B2: 2018 | C2: 36 años y 6 meses o más | D2: 65 años | E2: 1948-01-01 | F2: FECHA DE NACIMIENTO | G2: =Principal!B7 -> 00:00:00 | H2: =DAY(G2) -> 0 | J2: 2018 | K2: 65 | L2: 0.015 | M2: =44*12+6 -> 534 | O2: 60 | P2: 0.015 | Q2: =R2/12 -> 60 | R2: 720 | S2: 0.005
A3: 2 | B3: 2018 | C3: Menos de 36 años y 6 meses | D3: 65 años y 6 meses | E3: 1948-01-02 | H3: =MONTH(G2) -> 1 | J3: 2019 | K3: 65 | L3: 0.01625 | M3: =41*12+6 -> 498 | O3: 59 | P3: 0.015 | Q3: =R3/12 -> 59.91666667 | R3: 719 | S3: 0.005
A4: 3 | B4: 2019 | C4: 36 años y 9 meses o más | D4: 65 años | E4: 1948-01-03 | F4: FECHA INGRESO | G4: =Principal!#REF! ->  | H4: =YEAR(G2) -> 1900 | I4: =H4+65 -> 1965 | J4: 2022 | K4: 65 | L4: 0.0175 | M4: =38*12+6 -> 462 | O4: 58 | P4: 0.015 | Q4: 59.83333333 | R4: 718 | S4: 0.005
A5: 4 | B5: 2019 | C5: Menos de 36 años y 9 meses | D5: 65 años y 8 meses | E5: 1948-01-04 | F5: FECHA JUBILACION | G5: =DATE(I4,H3,H2) -> 1964-12-31 | H5: =DATEDIF(Prejus!C8+1,G$5,"Y")& " años, " & DATEDIF(Prejus!C$8+1,G$5,"YM") & " meses y " & DATEDIF(Prejus!C$8+1,G$5,"MD")& " días " ->  | J5: 2023 | K5: 65 | L5: 0.01875 | M5: =38*12+5 -> 461 | O5: 57 | P5: 0.015 | Q5: 59.75 | R5: 717 | S5: 0.005
A6: 5 | B6: 2020 | C6: 37 o más años | D6: 65 años | E6: 1948-01-05 | J6: 2024 | K6: 65 | O6: 56 | P6: 0.015 | Q6: 59.66666667 | R6: 716 | S6: 0.005
A7: 6 | B7: 2020 | C7: Menos de 37 años | D7: 65 años y 10 meses | E7: 1948-01-06 | F7: Tiempo cotizado en el Banco | H7: =DATEDIF(G$4,G$5,"Y")& " años, " & DATEDIF(G$4,G$5,"YM") & " meses y " & DATEDIF(G$4,G$5,"MD")& " días " ->  | J7: 2025 | K7: 65 | O7: 55 | P7: 0.015 | Q7: 59.58333333 | R7: 715 | S7: 0.005
A8: 7 | B8: 2021 | C8: 37 años y 3 meses o más | D8: 65 años | E8: 1948-01-07 | F8: AÑOS | G8: =DATEDIF(G$4,G$5,"Y") ->  | J8: 2026 | K8: 65 | O8: 54 | P8: 0.015 | Q8: 59.5 | R8: 714 | S8: 0.005
A9: 8 | B9: 2021 | C9: Menos de 37 años y 3 meses | D9: 66 años | E9: 1948-01-08 | F9: MESES | G9: =DATEDIF(G$4,G$5,"M") ->  | J9: 2027 | K9: 65 | O9: 53 | P9: 0.015 | Q9: 59.41666667 | R9: 713 | S9: 0.005
A10: 9 | B10: 2022 | C10: 37 años y 6 meses o más | D10: 65 años | E10: 1948-01-09 | O10: 52 | P10: 0.015 | Q10: 59.33333333 | R10: 712 | S10: 0.005
A11: 10 | B11: 2022 | C11: Menos de 37 años y 6 meses | D11: 66 años y 2 meses | E11: 1948-01-10 | F11: COEFICIENTE REDUCTOR A APLICAR | G11: =VLOOKUP(G9,R2:$S$722,2,FALSE) ->  | O11: 51 | P11: 0.015 | Q11: 59.25 | R11: 711 | S11: 0.005
A12: 11 | B12: 2023 | C12: 37 años y 9 meses o más | D12: 65 años | E12: 1948-01-11 | F12: Nº DE TRIMESTRES QUE FALTAN HASTA 65 AÑOS | G12: =2*4 -> 8 | O12: 50 | P12: 0.015 | Q12: 59.16666667 | R12: 710 | S12: 0.005
A13: 12 | B13: 2023 | C13: Menos de 37 años y 9 meses | D13: 66 años y 4 meses | E13: 1948-01-12 | F13: DISMINUCIÓN ANUAL DE LA PENSION MÁXIMA | G13: =G12*G11 ->  | O13: 49 | P13: 0.015 | Q13: 59.08333333 | R13: 709 | S13: 0.005
A14: 13 | B14: 2024 | C14: 38 o más años | D14: 65 años | E14: 1948-01-13 | O14: 48 | P14: 0.015 | Q14: 59 | R14: 708 | S14: 0.005
A15: 14 | B15: 2024 | C15: Menos de 38 años | D15: 66 años y 6 meses | E15: 1948-01-14 | O15: 47 | P15: 0.015 | Q15: 58.91666667 | R15: 707 | S15: 0.005
A16: 15 | B16: 2025 | C16: 38 años y 3 meses o más | D16: 65 años | E16: 1948-01-15 | O16: 46 | P16: 0.015 | Q16: 58.83333333 | R16: 706 | S16: 0.005
A17: 16 | B17: 2025 | C17: Menos de 38 años y 3 meses | D17: 66 años y 8 meses | E17: 1948-01-16 | O17: 45 | P17: 0.015 | Q17: 58.75 | R17: 705 | S17: 0.005
A18: 17 | B18: 2026 | C18: 38 años y 3 meses o más | D18: 65 años | E18: 1948-01-17 | O18: 44.6 | P18: 0.015 | Q18: 58.66666667 | R18: 704 | S18: 0.005
A19: 18 | B19: 2026 | C19: Menos de 38 años y 3 meses | D19: 66 años y 10 meses | E19: 1948-01-18 | O19: 44 | P19: 0.015 | Q19: 58.58333333 | R19: 703 | S19: 0.005
A20: 19 | B20: 2027 | C20: 38 años y 6 meses o más | D20: 65 años | E20: 1948-01-19 | O20: 43 | P20: 0.01625 | Q20: 58.5 | R20: 702 | S20: 0.005
A21: 20 | B21: 2027 | C21: Menos de 38 años y 6 meses | D21: 67 años | E21: 1948-01-20 | O21: 42 | P21: 0.01625 | Q21: 58.41666667 | R21: 701 | S21: 0.005
E22: 1948-01-21 | O22: 41 | P22: 0.01625 | Q22: 58.33333333 | R22: 700 | S22: 0.005
E23: 1948-01-22 | O23: 40 | P23: 0.0175 | Q23: 58.25 | R23: 699 | S23: 0.005
E24: 1948-01-23 | O24: 39 | P24: 0.0175 | Q24: 58.16666667 | R24: 698 | S24: 0.005
E25: 1948-01-24 | O25: 38 | P25: 0.0175 | Q25: 58.08333333 | R25: 697 | S25: 0.005
E26: 1948-01-25 | O26: 37 | P26: 0.0188 | Q26: 58 | R26: 696 | S26: 0.005
E27: 1948-01-26 | O27: 36 | P27: 0.0188 | Q27: 57.91666667 | R27: 695 | S27: 0.005
E28: 1948-01-27 | O28: 35 | P28: 0.0188 | Q28: 57.83333333 | R28: 694 | S28: 0.005
E29: 1948-01-28 | O29: 34 | P29: 0.0188 | Q29: 57.75 | R29: 693 | S29: 0.005
E30: 1948-01-29 | L30: xº | O30: 33 | P30: 0.0188 | Q30: 57.66666667 | R30: 692 | S30: 0.005
E31: 1948-01-30 | O31: 32 | P31: 0.0188 | Q31: 57.58333333 | R31: 691 | S31: 0.005
E32: 1948-01-31 | O32: 31 | P32: 0.0188 | Q32: 57.5 | R32: 690 | S32: 0.005
E33: 1948-02-01 | O33: 30 | P33: 0.0188 | Q33: 57.41666667 | R33: 689 | S33: 0.005
E34: 1948-02-02 | O34: 29 | P34: 0.0188 | Q34: 57.33333333 | R34: 688 | S34: 0.005
E35: 1948-02-03 | O35: 28 | P35: 0.0188 | Q35: 57.25 | R35: 687 | S35: 0.005
E36: 1948-02-04 | O36: 27 | P36: 0.0188 | Q36: 57.16666667 | R36: 686 | S36: 0.005
E37: 1948-02-05 | O37: 26 | P37: 0.0188 | Q37: 57.08333333 | R37: 685 | S37: 0.005
E38: 1948-02-06 | O38: 25 | P38: 0.0188 | Q38: 57 | R38: 684 | S38: 0.005
E39: 1948-02-07 | Q39: 56.91666667 | R39: 683 | S39: 0.005
E40: 1948-02-08 | Q40: 56.83333333 | R40: 682 | S40: 0.005
E41: 1948-02-09 | Q41: 56.75 | R41: 681 | S41: 0.005
E42: 1948-02-10 | Q42: 56.66666667 | R42: 680 | S42: 0.005
E43: 1948-02-11 | Q43: 56.58333333 | R43: 679 | S43: 0.005
E44: 1948-02-12 | Q44: 56.5 | R44: 678 | S44: 0.005
E45: 1948-02-13 | Q45: 56.41666667 | R45: 677 | S45: 0.005
E46: 1948-02-14 | Q46: 56.33333333 | R46: 676 | S46: 0.005
E47: 1948-02-15 | Q47: 56.25 | R47: 675 | S47: 0.005
E48: 1948-02-16 | Q48: 56.16666667 | R48: 674 | S48: 0.005
E49: 1948-02-17 | Q49: 56.08333333 | R49: 673 | S49: 0.005
E50: 1948-02-18 | Q50: 56 | R50: 672 | S50: 0.005
E51: 1948-02-19 | Q51: 55.91666667 | R51: 671 | S51: 0.005
E52: 1948-02-20 | Q52: 55.83333333 | R52: 670 | S52: 0.005
E53: 1948-02-21 | Q53: 55.75 | R53: 669 | S53: 0.005
E54: 1948-02-22 | Q54: 55.66666667 | R54: 668 | S54: 0.005
E55: 1948-02-23 | Q55: 55.58333333 | R55: 667 | S55: 0.005
E56: 1948-02-24 | Q56: 55.5 | R56: 666 | S56: 0.005
E57: 1948-02-25 | Q57: 55.41666667 | R57: 665 | S57: 0.005
E58: 1948-02-26 | Q58: 55.33333333 | R58: 664 | S58: 0.005
E59: 1948-02-27 | Q59: 55.25 | R59: 663 | S59: 0.005
E60: 1948-02-28 | Q60: 55.16666667 | R60: 662 | S60: 0.005
E61: 1948-02-29 | Q61: 55.08333333 | R61: 661 | S61: 0.005
E62: 1948-03-01 | Q62: 55 | R62: 660 | S62: 0.005
E63: 1948-03-02 | Q63: 54.91666667 | R63: 659 | S63: 0.005
E64: 1948-03-03 | Q64: 54.83333333 | R64: 658 | S64: 0.005
E65: 1948-03-04 | Q65: 54.75 | R65: 657 | S65: 0.005
E66: 1948-03-05 | Q66: 54.66666667 | R66: 656 | S66: 0.005
E67: 1948-03-06 | Q67: =R67/12 -> 54.58333333 | R67: 655 | S67: 0.005
E68: 1948-03-07 | Q68: 54.5 | R68: 654 | S68: 0.005
E69: 1948-03-08 | Q69: 54.41666667 | R69: 653 | S69: 0.005
E70: 1948-03-09 | Q70: 54.33333333 | R70: 652 | S70: 0.005
E71: 1948-03-10 | Q71: 54.25 | R71: 651 | S71: 0.005
E72: 1948-03-11 | Q72: 54.16666667 | R72: 650 | S72: 0.005
E73: 1948-03-12 | Q73: 54.08333333 | R73: 649 | S73: 0.005
E74: 1948-03-13 | Q74: 54 | R74: 648 | S74: 0.005
E75: 1948-03-14 | Q75: 53.91666667 | R75: 647 | S75: 0.005
E76: 1948-03-15 | Q76: 53.83333333 | R76: 646 | S76: 0.005
E77: 1948-03-16 | Q77: 53.75 | R77: 645 | S77: 0.005
E78: 1948-03-17 | Q78: 53.66666667 | R78: 644 | S78: 0.005
E79: 1948-03-18 | Q79: 53.58333333 | R79: 643 | S79: 0.005
E80: 1948-03-19 | Q80: 53.5 | R80: 642 | S80: 0.005
E81: 1948-03-20 | Q81: 53.41666667 | R81: 641 | S81: 0.005
E82: 1948-03-21 | Q82: 53.33333333 | R82: 640 | S82: 0.005
E83: 1948-03-22 | Q83: 53.25 | R83: 639 | S83: 0.005
E84: 1948-03-23 | Q84: 53.16666667 | R84: 638 | S84: 0.005
E85: 1948-03-24 | Q85: 53.08333333 | R85: 637 | S85: 0.005
E86: 1948-03-25 | Q86: 53 | R86: 636 | S86: 0.005
E87: 1948-03-26 | Q87: 52.91666667 | R87: 635 | S87: 0.005
E88: 1948-03-27 | Q88: 52.83333333 | R88: 634 | S88: 0.005
E89: 1948-03-28 | Q89: 52.75 | R89: 633 | S89: 0.005
E90: 1948-03-29 | Q90: 52.66666667 | R90: 632 | S90: 0.005
E91: 1948-03-30 | Q91: 52.58333333 | R91: 631 | S91: 0.005
E92: 1948-03-31 | Q92: 52.5 | R92: 630 | S92: 0.005
E93: 1948-04-01 | Q93: 52.41666667 | R93: 629 | S93: 0.005
E94: 1948-04-02 | Q94: 52.33333333 | R94: 628 | S94: 0.005
E95: 1948-04-03 | Q95: 52.25 | R95: 627 | S95: 0.005
E96: 1948-04-04 | Q96: 52.16666667 | R96: 626 | S96: 0.005
E97: 1948-04-05 | Q97: 52.08333333 | R97: 625 | S97: 0.005
E98: 1948-04-06 | Q98: 52 | R98: 624 | S98: 0.005
E99: 1948-04-07 | Q99: 51.91666667 | R99: 623 | S99: 0.005
E100: 1948-04-08 | Q100: 51.83333333 | R100: 622 | S100: 0.005
E101: 1948-04-09 | Q101: 51.75 | R101: 621 | S101: 0.005
E102: 1948-04-10 | Q102: 51.66666667 | R102: 620 | S102: 0.005
E103: 1948-04-11 | Q103: 51.58333333 | R103: 619 | S103: 0.005
E104: 1948-04-12 | Q104: 51.5 | R104: 618 | S104: 0.005
E105: 1948-04-13 | Q105: 51.41666667 | R105: 617 | S105: 0.005
E106: 1948-04-14 | Q106: 51.33333333 | R106: 616 | S106: 0.005
E107: 1948-04-15 | Q107: 51.25 | R107: 615 | S107: 0.005
E108: 1948-04-16 | Q108: 51.16666667 | R108: 614 | S108: 0.005
E109: 1948-04-17 | Q109: 51.08333333 | R109: 613 | S109: 0.005
E110: 1948-04-18 | Q110: 51 | R110: 612 | S110: 0.005
E111: 1948-04-19 | Q111: 50.91666667 | R111: 611 | S111: 0.005
E112: 1948-04-20 | Q112: 50.83333333 | R112: 610 | S112: 0.005
E113: 1948-04-21 | Q113: 50.75 | R113: 609 | S113: 0.005
E114: 1948-04-22 | Q114: 50.66666667 | R114: 608 | S114: 0.005
E115: 1948-04-23 | Q115: 50.58333333 | R115: 607 | S115: 0.005
E116: 1948-04-24 | Q116: 50.5 | R116: 606 | S116: 0.005
E117: 1948-04-25 | Q117: 50.41666667 | R117: 605 | S117: 0.005
E118: 1948-04-26 | Q118: 50.33333333 | R118: 604 | S118: 0.005
E119: 1948-04-27 | Q119: 50.25 | R119: 603 | S119: 0.005
E120: 1948-04-28 | Q120: 50.16666667 | R120: 602 | S120: 0.005
E121: 1948-04-29 | Q121: 50.08333333 | R121: 601 | S121: 0.005
E122: 1948-04-30 | Q122: 50 | R122: 600 | S122: 0.005
E123: 1948-05-01 | Q123: 49.91666667 | R123: 599 | S123: 0.005
E124: 1948-05-02 | Q124: 49.83333333 | R124: 598 | S124: 0.005
E125: 1948-05-03 | Q125: 49.75 | R125: 597 | S125: 0.005
E126: 1948-05-04 | Q126: 49.66666667 | R126: 596 | S126: 0.005
E127: 1948-05-05 | Q127: 49.58333333 | R127: 595 | S127: 0.005
E128: 1948-05-06 | Q128: 49.5 | R128: 594 | S128: 0.005
E129: 1948-05-07 | Q129: 49.41666667 | R129: 593 | S129: 0.005
E130: 1948-05-08 | Q130: 49.33333333 | R130: 592 | S130: 0.005
E131: 1948-05-09 | Q131: =R131/12 -> 49.25 | R131: 591 | S131: 0.005
E132: 1948-05-10 | Q132: 49.16666667 | R132: 590 | S132: 0.005
E133: 1948-05-11 | Q133: 49.08333333 | R133: 589 | S133: 0.005
E134: 1948-05-12 | Q134: 49 | R134: 588 | S134: 0.005
E135: 1948-05-13 | Q135: 48.91666667 | R135: 587 | S135: 0.005
E136: 1948-05-14 | Q136: 48.83333333 | R136: 586 | S136: 0.005
E137: 1948-05-15 | Q137: 48.75 | R137: 585 | S137: 0.005
E138: 1948-05-16 | Q138: 48.66666667 | R138: 584 | S138: 0.005
E139: 1948-05-17 | Q139: 48.58333333 | R139: 583 | S139: 0.005
E140: 1948-05-18 | Q140: 48.5 | R140: 582 | S140: 0.005
E141: 1948-05-19 | Q141: 48.41666667 | R141: 581 | S141: 0.005
E142: 1948-05-20 | Q142: 48.33333333 | R142: 580 | S142: 0.005
E143: 1948-05-21 | Q143: 48.25 | R143: 579 | S143: 0.005
E144: 1948-05-22 | Q144: 48.16666667 | R144: 578 | S144: 0.005
E145: 1948-05-23 | Q145: 48.08333333 | R145: 577 | S145: 0.005
E146: 1948-05-24 | Q146: 48 | R146: 576 | S146: 0.005
E147: 1948-05-25 | Q147: 47.91666667 | R147: 575 | S147: 0.005
E148: 1948-05-26 | Q148: 47.83333333 | R148: 574 | S148: 0.005
E149: 1948-05-27 | Q149: 47.75 | R149: 573 | S149: 0.005
E150: 1948-05-28 | Q150: 47.66666667 | R150: 572 | S150: 0.005
E151: 1948-05-29 | Q151: 47.58333333 | R151: 571 | S151: 0.005
E152: 1948-05-30 | Q152: 47.5 | R152: 570 | S152: 0.005
E153: 1948-05-31 | Q153: 47.41666667 | R153: 569 | S153: 0.005
E154: 1948-06-01 | Q154: 47.33333333 | R154: 568 | S154: 0.005
E155: 1948-06-02 | Q155: 47.25 | R155: 567 | S155: 0.005
E156: 1948-06-03 | Q156: 47.16666667 | R156: 566 | S156: 0.005
E157: 1948-06-04 | Q157: 47.08333333 | R157: 565 | S157: 0.005
E158: 1948-06-05 | Q158: 47 | R158: 564 | S158: 0.005
E159: 1948-06-06 | Q159: 46.91666667 | R159: 563 | S159: 0.005
E160: 1948-06-07 | Q160: 46.83333333 | R160: 562 | S160: 0.005
E161: 1948-06-08 | Q161: 46.75 | R161: 561 | S161: 0.005
E162: 1948-06-09 | Q162: 46.66666667 | R162: 560 | S162: 0.005
E163: 1948-06-10 | Q163: 46.58333333 | R163: 559 | S163: 0.005
E164: 1948-06-11 | Q164: 46.5 | R164: 558 | S164: 0.005
E165: 1948-06-12 | Q165: 46.41666667 | R165: 557 | S165: 0.005
E166: 1948-06-13 | Q166: 46.33333333 | R166: 556 | S166: 0.005
E167: 1948-06-14 | Q167: 46.25 | R167: 555 | S167: 0.005
E168: 1948-06-15 | Q168: 46.16666667 | R168: 554 | S168: 0.005
E169: 1948-06-16 | Q169: 46.08333333 | R169: 553 | S169: 0.005
E170: 1948-06-17 | Q170: 46 | R170: 552 | S170: 0.005
E171: 1948-06-18 | Q171: 45.91666667 | R171: 551 | S171: 0.005
E172: 1948-06-19 | Q172: 45.83333333 | R172: 550 | S172: 0.005
E173: 1948-06-20 | Q173: 45.75 | R173: 549 | S173: 0.005
E174: 1948-06-21 | Q174: 45.66666667 | R174: 548 | S174: 0.005
E175: 1948-06-22 | Q175: 45.58333333 | R175: 547 | S175: 0.005
E176: 1948-06-23 | Q176: 45.5 | R176: 546 | S176: 0.005
E177: 1948-06-24 | Q177: 45.41666667 | R177: 545 | S177: 0.005
E178: 1948-06-25 | Q178: 45.33333333 | R178: 544 | S178: 0.005
E179: 1948-06-26 | Q179: 45.25 | R179: 543 | S179: 0.005
E180: 1948-06-27 | Q180: 45.16666667 | R180: 542 | S180: 0.005
E181: 1948-06-28 | Q181: 45.08333333 | R181: 541 | S181: 0.005
E182: 1948-06-29 | Q182: 45 | R182: 540 | S182: 0.005
E183: 1948-06-30 | Q183: 44.91666667 | R183: 539 | S183: 0.005
E184: 1948-07-01 | Q184: 44.83333333 | R184: 538 | S184: 0.005
E185: 1948-07-02 | Q185: 44.75 | R185: 537 | S185: 0.005
E186: 1948-07-03 | Q186: 44.66666667 | R186: 536 | S186: 0.005
E187: 1948-07-04 | Q187: 44.58333333 | R187: 535 | S187: 0.005
E188: 1948-07-05 | Q188: 44.5 | R188: 534 | S188: 0.005
E189: 1948-07-06 | Q189: 44.41666667 | R189: 533 | S189: 0.005
E190: 1948-07-07 | Q190: 44.33333333 | R190: 532 | S190: 0.005
E191: 1948-07-08 | Q191: 44.25 | R191: 531 | S191: 0.005
E192: 1948-07-09 | Q192: 44.16666667 | R192: 530 | S192: 0.005
E193: 1948-07-10 | Q193: 44.08333333 | R193: 529 | S193: 0.005
E194: 1948-07-11 | Q194: 44 | R194: 528 | S194: 0.005
E195: 1948-07-12 | Q195: =R195/12 -> 43.91666667 | R195: 527 | S195: 0.005
E196: 1948-07-13 | Q196: 43.83333333 | R196: 526 | S196: 0.005
E197: 1948-07-14 | Q197: 43.75 | R197: 525 | S197: 0.005
E198: 1948-07-15 | Q198: 43.66666667 | R198: 524 | S198: 0.005
E199: 1948-07-16 | Q199: 43.58333333 | R199: 523 | S199: 0.005
E200: 1948-07-17 | Q200: 43.5 | R200: 522 | S200: 0.005
... 4300 more rows

Sheet Baja 50-54 años - 15 o más (hidden)
A1: BAJA INCENTIVADA
A2: Edad: | B2: 50 a 54 años | D2: Antigüedad: 15 años o superior
A4: Datos personales | E4: Datos de tu nómina
A5: Nombre | B5: ='Acceso a Bajas 50-54 Ant. >15'!D4 -> PAZ | D5: Nº de empleado | F5: ='Acceso a Bajas 50-54 Ant. >15'!G4 -> 24509
A6: Primer apellido | B6: ='Acceso a Bajas 50-54 Ant. >15'!D5 -> PI | D6: Fecha de antigüedad | F6: ='Acceso a Bajas 50-54 Ant. >15'!G5 -> 1983-02-11
A7: Segundo apellido | B7: ='Acceso a Bajas 50-54 Ant. >15'!D6 -> PEZ | D7: Trienios de antigüedad completos | G7: ='50-54 >15años'!G7 -> 
A8: Fecha de nacimiento | B8: ='Acceso a Bajas 50-54 Ant. >15'!D7 -> 1964-01-06 | D8: Fecha de baja en la empresa | F8: ='Acceso a Bajas 50-54 Ant. >15'!G6 -> 2018-10-04
A9: Edad en 2018 | B9: ='50-54 >15años'!G4 ->  | D9: Nivel técnico de convenio | F9: ='Acceso a Bajas 50-54 Ant. >15'!G7 -> 4
A10: Nº de hijos menores de 26 años | B10: ='Acceso a Bajas 50-54 Ant. >15'!D8 -> 1 | D10: Antigüedad | F10: ='50-54 >15años'!E5 -> 
C11: Cotizado en el Banco a la Seg. Social | F11: =F10 -> 
A12: Cálculos orientativos no vinculantes
A14: Total salario anual pensionable | E14: ='50-54 >15años'!G17 -> 
A15: 80% del Salario Anual Pensionable | B15: ='50-54 >15años'!C20 -> 
A16: Indemnización de 8 anualidades | B16: ='50-54 >15años'!C21 -> 
A18: Importe Límite Màximo en Acuerdo | E18: ='50-54 >15años'!C22 -> 380000
A19: 1.- Total Indemnización | E19: ='50-54 >15años'!C23 -> 
A21: Por antigüedad | B21: ='50-54 >15años'!C25 -> 
A22: Por trienios | B22: ='50-54 >15años'!C26 -> 
A23: 2.- Total Primas | E23: ='50-54 >15años'!C27 -> 
A25: A.- TOTAL ABONO DEL BANCO POR UNA SOLA VEZ | E25: ='50-54 >15años'!G23 -> 
A27: Prestación máxima de desempleo 2017 | B27: Mensual | E27: Anual
A28: Sin hijos | B28: ='50-54 >15años'!E45 -> 1098.09 | E28: ='50-54 >15años'!G45 -> 13177.08
A29: Con 1 hijo a su cargo | B29: ='50-54 >15años'!E46 -> 1254.96 | E29: ='50-54 >15años'!G46 -> 15059.52
A30: Con 2 o más hijos a su cargo | B30: ='50-54 >15años'!E47 -> 1411.83 | E30: ='50-54 >15años'!G47 -> 16941.96
A32: (hijos menores de 26 años o mayores o con discapacidad igual o superior al 33%, según la legislaciòn vigente)
A33: B.- PRESTACION DE DESEMPLEO POR 2 AÑOS | E33: ='50-54 >15años'!D33 -> 
A35: TOTAL IMPORTE BRUTO A HASTA CUMPLIR 63 AÑOS (A + B) | E35: ='50-54 >15años'!D34 -> 
A37: Fiscalidad
A38: Siempre en función de la base imponible de cada persona y definida en la Renta del IRPF. El 30% del exceso sobre el máximo de 180 mil € está exento por considerarse renta irregular. Tributa sólo el 70% del exceso.
A42: Seguridad Social
A43: Convenio Especial, cotización máxima a cargo del Banco hasta los 63 años (edad para la jubilación anticipada). | E43: Cuota mensual
E44: ='50-54 >15años'!C55 -> 957
E45: Cuota anual
A46: (Cada mes. se adeuda al empleado y 2 días despúes el Banco lo abona). | E46: ='50-54 >15años'!C57 -> 11484
A48: Años que restan para cumplir 63 años | E48: ='50-54 >15años'!C37 -> 
A49: Año en el que se cumplen los 65 años | E49: ='50-54 >15años'!C38 -> 
A51: Pensión máxima (actualizada a 2017)
A52: (14 pagas) de la Seguridad social a partir de los 63 años. | E52: Paga (14 pagas)
A53: Hay que aplicar el Coeficiente reductor que corresponda por cada trimestre que falte hasta la edad de jubilacion de 65 años (por jubilación anticipada a los 63 años), según la vida laboral. Sumar trimestres faltantes y multiplicar por el coeficiente. | E53: ='50-54 >15años'!C60 -> 2573.7
E54: Pensión anual
E55: ='50-54 >15años'!C62 -> 36031.8
A57: Ejemplo: Faltan 2 años = 8 trimestres. Hay que multiplicar 8 x 1,75% = 14% anual.
A58: A la pensión anual habría que descontarle el 14% para obtener la pensión real.
A60: Vida laboral: años oficiales cotizados a la Seguridad Social | E60: Coef. Red. Trim.
A61: Más de 44 años y 6 meses | E61: 0.015
A62: Igual o superior a 41 años y 6 meses | E62: 0.01625
A63: Igual o superior a 38 años y 6 meses e inferior a 41 años y 6 meses | E63: 0.0175
A64: Inferior a 38 años y 6 meses | E64: 0.01875
A66: INFORMACIÓN DE INTERES
A68: Trabajadores mayores de 55 años que pierden su empleo en un despido colectivo
A69: En el supuesto de trabajadores mayores de 55 años que pierden su empleo en un despido colectivo, que no tienen la condición de mutualista a 1 de enero de 1967, en una empresa no incursa en un procedimiento concursal, se impone al empresario la obligación de financiar un convenio especial de la Seguridad Social. Fuera del ámbito del despido colectivo por causas económicas, técnicas, organizativas o de producción no existe la citada obligación de financiar un convenio especial de la Seguridad Social. La solicitud del convenio especial debe realizarse durante el procedimiento de despido colectivo. El convenio especial es suscrito, por un lado, por el empresario y el trabajador, y, por otro lado, por la Tesorería General de la Seguridad Social.
A71: La finalidad del convenio especial.
A72: La suscripción del convenio especial determina la continuación de la situación de alta o asimilada a la de alta. El convenio especial tiene por objeto la cotización al Régimen de la Seguridad Social que corresponda y la cobertura de las situaciones derivadas de contingencias comunes. Quedan excluidas las situaciones de incapacidad temporal, maternidad y riesgo durante el embarazo y los subsidios correspondientes a las mismas. Asimismo, queda excluida la cotización y la protección por desempleo, Fondo de Garantía Salarial y formación profesional.
A74: La cotización
A75: La cotización en el convenio especial se realizará desde la fecha en que se produzca el cese en el trabajo o, en su caso, en que finalice la obligación de cotizar por extinción de la prestación por desempleo, y la fecha en que el trabajador cumpla la edad de 67 años, o 65 cuando se acrediten 38 años y 6 meses de cotización. Estas edades de jubilación y años de cotización no entrarán en vigor hasta el año 2027. Existe un período de transición hacia dichas edades y años de cotización. Para el año 2016, la edad de jubilación es de 65 años si se acreditan 36 o más años de cotización, o 65 años y 4 meses cuando se acrediten menos de 36 años de cotización. Las cotizaciones son a cargo del empresario hasta la fecha en que el trabajador cumpla los 63 años, salvo en los casos en que el despido colectivo haya tenido una causa económica, en este caso la obligación se extiende hasta que el trabajador cumpla los 61 años. Desde que el trabajador cumpla los 63 años o, en su caso, los 61 años, las aportaciones al convenio especial son a su exclusivo cargo y son obligatorias hasta que el trabajador cumpla la edad ordinaria de jubilación o, en su caso, acceda a la pensión de jubilación anticipada (es necesario ver la vida laboralpara saber los años cotizados hasta la fecha baja en el Banco y sumarle los restantes hasta cumplir los 63 años). En caso de fallecimiento del trabajador o de reconocimiento de una pensión de incapacidad permanente durante el periodo de cotización correspondiente al empresario, este tiene derecho al reintegro de las cuotas, siempre que se hubiesen ingresado en una fecha posterior al fallecimiento o reconocimiento de la pensión de incapacidad permanente.
A77: Si durante el periodo de cotización a cargo del empresario el trabajador realizase alguna actividad por la que se efectúen cotizaciones a la Seguridad Social, las cuotas coincidentes con las correspondientes a la actividad realizada, hasta la cuantía de estas últimas, se aplicarán al pago del convenio especial durante el período a cargo del trabajador.
